Workbook

Sheet Contents
B3: Electricity Distribution Network Service Provider F-factor Reporting Template
B5: Table of contents
C8: Cover sheet | F8: 2. Fire start report
C12: 1. F-factor summary | F12: 3. Systems and Audit
C19: ="NOTE: This spreadsheet includes IRU targets up to and including FY"&'1. F-Factor summary'!J9 -> NOTE: This spreadsheet includes IRU targets up to and including FY2022/23

Sheet Cover
B8: Distribution Network Service Provider
B9: Fire start report
B11: This template is to be used by a DNSP to provide a fire start report to the AER in accordance with section 5 of the F-factor Order in Council.
B14: Colour coding of input sheets:
B15: Dark blue = AER headings
B16: Grey = AER instructions
B17: Yellow = Input cells
B18: Light orange = Automatically-generated cells
B20: Leave coloured cells blank if no information exists - PLEASE DO NOT ENTER TEXT unless specifically requested to do so.
B21: The cells and structure of the spreadsheet is locked to prevent inadvertent interference with the automated settings.
B22: All dollar amounts are to be unrounded, and in nominal terms.
B27: DNSP: | D27: Powercor
B29: DNSP - trading name: | D29: Powercor Australia Ltd
B31: DNSP - Australian business number: | D31: ACN 064 651 109
B33: Reporting year: | D33: 2022/23
B38: Business address | C38: Address | E38: 40 Market Street
C39: Suburb | E39: Melbourne
D40: State | E40: Victoria | F40: Postcode
B42: Postal address | C42: Address | E42: Locked Bag 14090
C43: Suburb | E43: Melbourne
D44: State | E44: Victoria | F44: Postcode
B47: Contact name/s
B48: Contact phone/s
B49: Contact email address/s

Sheet 1. F-Factor summary
B1: =IF(Cover!D27="","[DNSP Name]", Cover!D27) -> Powercor | C1: IRU target: | D1: =IF(SUM(K2:O2)=0,"",SUM(K2:O2)) -> 188 | K1: AusNet Services | L1: CitiPower | M1: Jemena | N1: Powercor | O1: United Energy
B2: F-factor data reporting | C2: IRU amount: | D2: =IF(SUM('2. Individual fire start info'!S38:S2000)=0,"",SUM('2. Individual fire start info'!S38:S2000)) -> 69.9156 | J2: current | K2: =IF(OR($B3="[Year]",$B1="[DNSP Name]",$B1<>K1),"",LOOKUP($B3,$J3:$J100,K3:K100)) ->  | L2: =IF(OR($B3="[Year]",$B1="[DNSP Name]",$B1<>L1),"",LOOKUP($B3,$J3:$J100,L3:L100)) ->  | N2: 188
B3: =IF(Cover!D33="","[Year]",Cover!D33) -> 2022/23 | C3: Revenue adjustment: | D3: =IF(OR(D1="",D2=""),"",15000*(D1-D2)) -> 1771266 | J3: 2016/17 | K3: 247.7 | L3: 3.4 | M3: 9.7 | N3: 468 | O3: 22.3
J4: 2017/18 | K4: 247.7 | L4: 3.4 | M4: 9.7 | N4: 468 | O4: 22.3
B5: Table 2: Summary of total fire starts by F factor Order definition | J5: 2018/19 | K5: 247.7 | L5: 3.4 | M5: 9.7 | N5: 468 | O5: 22.3
B6: This is a summary of data in worksheet "2. Fire Start Report" | J6: 2019/20 | K6: 221.1 | L6: 3.4 | M6: 9.7 | N6: 412.8 | O6: 22.3
B7: Kind of Fire Start by definition of fire start under clause 5 of F-factor Order | C7: Total fires by cause | J7: 2020/21 | K7: 177.5 | L7: 1.3 | M7: 4.2 | N7: 277.6 | O7: 18.7
B8: Started in or originated from a distribution system | C8: =COUNTIF('2. Individual fire start info'!$N$38:$N$2000,'1. F-Factor summary'!$B8) -> 109 | J8: 2021/22 | K8: 164.3 | L8: 1.9 | M8: 3.7 | N8: 235.2 | O8: 19
B9: Started by any tree, or part of a tree, falling upon or coming into contact with a distribution system | C9: =COUNTIF('2. Individual fire start info'!$N$38:$N$2000,'1. F-Factor summary'!$B9) -> 14 | J9: 2022/23 | K9: 149.7 | L9: 1.5 | M9: 2.7 | N9: 188 | O9: 13.9
B10: Started by any person, bird, reptile or other animal coming into contact with a distribution system | C10: =COUNTIF('2. Individual fire start info'!$N$38:$N$2000,'1. F-Factor summary'!$B10) -> 7
B11: Started by lightning striking a distribution system or a part of a distribution system | C11: =COUNTIF('2. Individual fire start info'!$N$38:$N$2000,'1. F-Factor summary'!$B11) -> 7
B12: Started by any other thing forming part of or coming into contact with a distribution system | C12: =COUNTIF('2. Individual fire start info'!$N$38:$N$2000,'1. F-Factor summary'!$B12) -> 16
B13: Otherwise started by a distribution system | C13: =COUNTIF('2. Individual fire start info'!$N$38:$N$2000,'1. F-Factor summary'!$B13) -> 0
B14: Total | C14: =SUM(C8:C13) -> 153

Sheet 2. Individual fire start info
B1: =IF(Cover!D27="","[DNSP Name]", Cover!D27) -> Powercor
B2: F-factor data reporting
B3: =IF(Cover!D33="","[Year]",Cover!D33) -> 2022/23
B6: Instructions:
B8: ="Enter into this worksheet fire start data, from any IT system, which have been recorded by "&IF(Cover!D27="","[DNSP Name]", Cover!D27)&". Note that fire starts must be in accordance with the definition of a fire start in the Order In Council." -> Enter into this worksheet fire start data, from any IT system, which have been recorded by Powercor. Note that fire starts must be in accordance with the definition of a fire start in the Order In Council.
B10: "Fire" should be interpreted using its common meaning and can be defined as a process in which substances combine chemically with oxygen from the air and typically give out bright light, heat and smoke. A fire should be recorded where there is evidence of smoking, charring, scorching, burning or any other evidence that a fire had occurred.
B12: =IF(Cover!D27="","[DNSP Name] must provide:", CONCATENATE(Cover!D27," must provide:")) -> Powercor must provide:
B14: Table 3 - Individual Fire Starts
B15: (1) Date - dd/mm/yyyy
B16: (2) Time - if known, the 24-hour time of the fire start hh:mm
B17: (3) Latitude and longitude of the fire start as decimal coordinates
B18: (4) Address of the property on which the incident occurred or closest to the incident
B19: (5) Asset number for the asset nearest the fire start
B20: =" (6) Feeder ID for the polyphase overhead line or underground cable nearest the fire start in the "&B1&" network" -> (6) Feeder ID for the polyphase overhead line or underground cable nearest the fire start in the Powercor network
B21: (7) Voltage on the line in which the fire start occurred (note: this may not be the nearest polyphase overhead line)
B22: (8) Network categorisation - CBD, Urban, Rural Long or Rural Short
B23: (9) Asset type of primary asset causing fire in accordance with OSIRIS asset categories
B24: (10) Where the asset involved in the fire is a transformer or an overhead or underground line, provide the phase, or phases, of the line or transformer
B25: (11) Kind of fire start in accordance with categories specified in Clause 5 of the F-factor Order-In-Council [Note: For the 2022-2023 period, the AER and ESV will accept either the initiating event or the cause.]
B26: (12) Identify the location of the fire start in accordance with the categories specified in Clause 11(b) of the F-factor Order-In-Council
B27: (13) Provide the BOM fire danger rating applicable at the time of the fire start (data is available on the EM-COP website) [Note: The fire danger rating applies from the time it was issued; ratings do no apply retrospectively. The rating from the previous day carries into the current day until the rating is changed. If no fire danger rating is issued for the day, a rating of "No forecast" applies for the whole day.]
B28: =" (14) "&IF(Cover!D27="","[DNSP Name]", Cover!D27)&"'s record number for the incident" -> (14) Powercor's record number for the incident
B29: (15) ESV's OSIRIS reference number for the incident
B30: (16) Free text description of the fault containing relevant comments from field reports
B34: Table 2: Individual Fire Starts
B36: Number | C36: Fire starts | L36: Fire Type | O36: Risk Factors | S36: IRU amount | T36: Additional information
C37: Date 1 | D37: Time 2 | E37: Latitude 3 | F37: Longitude 3 | G37: Address of incident 4 | H37: ID of nearest asset 5 | I37: ID of nearest polyphase line 6 | J37: Voltage of line in which fire start occurred 7 | K37: Network categorisation 8 | L37: Type of primary asset involved in fire start 9 | M37: Phase(s) of line or transformer 10 | N37: Kind of fire start as per Clause 5 of F-factor Order-In-Council 11 | O37: Location area 12 | P37: Location multiplier | Q37: Fire danger rating 13 | R37: Danger multiplier | S37: Product of multipliers | T37: DNSP record number 14 | U37: OSIRIS (ESV) reference number 15 | V37: Fault description 16
A38: =COUNTA(C38:O38,Q38,T38:V38) -> 17 | B38: 1 | C38: 2022-07-02 | D38: 23:23 | E38: -38.088905 | F38: 141.59292 | G38: 2639 Princes Highway, Drumbore | H38: 30090908 | I38: PLD003 | J38: Low voltage AC (<1kV) | K38: Rural Long | L38: - connection box | M38: three phase | N38: Started in or originated from a distribution system | O38: HBRA only | P38: =IF(O38="","",IF(O38="LBRA only",0.2,IF(O38="HBRA only",1,IF(O38="within electric line construction area",19.8,IF(O38="within area delineated on plan LEGL./16-354",4.6,""))))) -> 1 | Q38: No forecast | R38: =IF(Q38="","",IF(C38>=DATE(2022,9,1),IF(Q38="No forecast",0.05,IF(Q38="Moderate",0.334,IF(Q38="High",0.678,IF(Q38="Extreme",2.272,4.754)))),0.05)) -> 0.05 | S38: =IF(OR(P38="",R38=""),"",IF(AND(O38="within electric line construction area",Q38="No forecast"),1,P38*R38)) -> 0.05 | T38: INC-0017906 | U38: 20220704PWA_03 | V38: Crew attended an all supply failure at the above address. Once on site the crew discovered the pole box had faulted and caught fire. No ground fire. | Y38: Overhead conductors
A39: 17 | B39: 2 | C39: 2022-07-10 | D39: 19:23 | E39: -37.719393 | F39: 144.83543 | G39: OPP 676 OLD CALDER HIGHWAY,KEILOR,VIC,3036 | H39: 31024200 | I39: SA002 | J39: Low voltage AC (<1kV) | K39: Rural Short | L39: - connector / termination | M39: three phase | N39: Started in or originated from a distribution system | O39: LBRA only | P39: 0.2 | Q39: No forecast | R39: =IF(Q39="","",IF(C39>=DATE(2022,9,1),IF(Q39="No forecast",0.05,IF(Q39="Moderate",0.334,IF(Q39="High",0.678,IF(Q39="Extreme",2.272,4.754)))),0.05)) -> 0.05 | S39: 0.01 | T39: INC-0018250 | U39: 20220815PWA_01 | V39: Customer reported pole on fire, arcing and sparking. On arrival crew reported that Connection on ABC cable had burnt out and caught fire, but now out. There was no ground fire, no reported injuries or property damage Found during outage data review | Y39: - overhead conductor (bare; aluminium core steel reinforced)
A40: 17 | B40: 3 | C40: 2022-07-11 | D40: 00:33 | E40: -37.378717 | F40: 144.127099 | G40: 2585 Ballan-Daylesford Road, Musk Vale | H40: 31001721 | I40: BAN003 | J40: 22kV AC | K40: Urban | L40: - dropper / bridge | M40: three phase | N40: Started in or originated from a distribution system | O40: within area delineated on plan LEGL./16-354 | P40: 4.6 | Q40: No forecast | R40: 0.05 | S40: 0.23 | T40: INC-0017946 | U40: 20220711PWA_01 | V40: Report from customer received that of transformer has failed, it was sparking and popping then started glowing and failed. CFA reported pole fire reported outside 2585 Ballan-Daylesford Road, Musk Vale. Attending crew said that the HV insulator leads at Barkstead 199 substation (LIS-29054) had been burnt. There was no ground fire, no reported injuries or third party property damage | Y40: - overhead conductor (bare; all aluminium conductor)
A41: 17 | B41: 4 | C41: 2022-07-11 | D41: 11:05 | E41: -37.051634 | F41: 143.686648 | G41: 137 MOONLIGHT ROAD,ADELAIDE LEAD,VIC,3465 | H41: 30018113 | I41: MRO008 | J41: Low voltage AC (<1kV) | K41: Rural Long | L41: - connection box | M41: single phase | N41: Started in or originated from a distribution system | O41: within area delineated on plan LEGL./16-354 | P41: 4.6 | Q41: No forecast | R41: 0.05 | S41: 0.23 | T41: INC-0017952 | U41: 20220711PWA_02 | V41: Fault Crew on site advised that LV Fuse Box and wiring on pole had burnt , no ground fire | Y41: - overhead conductor (bare; copper)
A42: 17 | B42: 5 | C42: 2022-07-14 | D42: 11:39 | E42: -37.975865 | F42: 143.135054 | G42: Hamilton Hwy, Derrinallum VIC 3325, Australia | H42: 30043743 | I42: CDN006 | J42: 22kV AC | K42: Rural Long | L42: - fuse (EDO fuse) | M42: three phase | N42: Started in or originated from a distribution system | O42: within area delineated on plan LEGL./16-354 | P42: 4.6 | Q42: No forecast | R42: 0.05 | S42: 0.23 | T42: INC-0018251 | U42: 20220815PWA_02 | V42: Report of supply failures. On arrival crew found EDO fuse had hung up and candled, possible initial fault was an animal/bird contact There was no ground fire, no reported injuries or third party property damage No photos taken Found during outage data review | Y42: - overhead conductor (bare; steel)
A43: 17 | B43: 6 | C43: 2022-07-23 | D43: 10:30 | E43: -37.589271 | F43: 144.232483 | G43: 24 Ballanee Rd, Ballan VIC 3342 | H43: 33077161 | I43: BMH003 | J43: 22kV AC | K43: Rural Long | L43: - fuse (EDO fuse) | M43: three phase | N43: Started in or originated from a distribution system | O43: HBRA only | P43: 1 | Q43: No forecast | R43: 0.05 | S43: 0.05 | T43: INC-0018255 | U43: 20220816PWA_02 | V43: Following report of supply interruption, crew found an EDO fuse had operated and candled. There was no ground fire, no reported injuries or third party property damage. Found during Outage data review. No photos supplied | Y43: - overhead conductor (ABC)
A44: 17 | B44: 7 | C44: 2022-07-26 | D44: 23:40 | E44: -38.723381 | F44: 143.71745 | G44: 25 Surf Ave, Skenes Creek VIC 3233, Australia | H44: 32066756 | I44: CLC013 | J44: Low voltage AC (<1kV) | K44: Rural Long | L44: - fuse (any other type) | M44: three phase | N44: Started in or originated from a distribution system | O44: LBRA only | P44: 0.2 | Q44: No forecast | R44: 0.05 | S44: 0.01 | T44: INC-0018117 | U44: 20220729PWA_01 | V44: Vic fire called to advise of a pole fire at the incident location. A crew was dispatched and found that an FSD and associated leads on the blue phase has deteriorated. The leads had become dislodged due to possible fire. There was no ground fire, no reported injuries or third party property damage. | Y44: - overhead conductor (covered uninsulated)
A45: 17 | B45: 8 | C45: 2022-07-27 | D45: 08:56 | E45: -36.325181 | F45: 145.410805 | G45: 629 GOULBURN VALLEY HIGHWAY,SHEPPARTON NORTH,VIC,3631 | H45: PA0125441 | I45: SHN011 | J45: 22kV AC | K45: Rural Long | L45: - transformer (kiosk mounted) | M45: three phase | N45: Started by any other thing forming part of or coming into contact with a distribution system | O45: LBRA only | P45: 0.2 | Q45: No forecast | R45: 0.05 | S45: 0.01 | T45: INC-0018099 | U45: 20220727PWA_01 | V45: Firecom, reported Fire in substation Attending crew found an excavator has hit several underground cables and the kiosk substation in the school grounds has been damaged and fire. Transformer leaking oil Crew have asked excavator to remain on site for now ESV en-route | Y45: - overhead conductor (insulated)
A46: 17 | B46: 9 | C46: 2022-07-30 | D46: 06:21 | E46: -38.116632 | F46: 144.655478 | G46: 68 FENWICK STREET,PORTARLINGTON,VIC,3223 | H46: 33046565 | I46: DDL021 | J46: Low voltage AC (<1kV) | K46: Rural Short | L46: - connection box | M46: single phase | N46: Started in or originated from a distribution system | O46: LBRA only | P46: 0.2 | Q46: No forecast | R46: 0.05 | S46: 0.01 | T46: INC-0018127 | U46: 20220801PWA_01 | V46: Customer reported Box on pole on fire, large orange sparks along with flames hitting the ground. Attending crew found fuse box had overheated and ignited. Small fire at base of pole of some 300mm diameter | Y46: Service lines
A47: 17 | B47: 10 | C47: 2022-08-03 | D47: 05:23 | E47: -38.257161 | F47: 143.219807 | G47: 3650 PRINCES HIGHWAY CAMPERDOWN VIC 3260 | H47: 30264439 | I47: CDN-CLC | J47: 66kV AC | K47: Rural Long | L47: - insulators | M47: three phase | N47: Started in or originated from a distribution system | O47: within area delineated on plan LEGL./16-354 | P47: 4.6 | Q47: No forecast | R47: 0.05 | S47: 0.23 | T47: INC-0018158 | U47: 20220803PWA_01 | V47: Emergency services reported a Pole Fire, CFA crews enroute. Attending crew found that insulator stud had snapped allowing 66kv conductor to dislodge and ignite pole | Y47: - overhead service conductor (residential)
A48: 17 | B48: 11 | C48: 2022-08-03 | D48: 06:07 | E48: -37.342593 | F48: 143.339961 | G48: 25 Red Hill Rd, Raglan VIC 3373 | H48: 30002916 | I48: BAS011 | J48: 22kV AC | K48: Rural Long | L48: - dropper / bridge | M48: three phase | N48: Started by any tree, or part of a tree, falling upon or coming into contact with a distribution system | O48: within area delineated on plan LEGL./16-354 | P48: 4.6 | Q48: No forecast | R48: 0.05 | S48: 0.23 | T48: INC-0018168 | U48: 20220804PWA_01 | V48: Crew investigating outage found burnt tree bark on SWER Isolating Transformers and on nearby ground no further information available | Y48: - overhead service conductor (commercial / industrial)
A49: 17 | B49: 12 | C49: 2022-08-05 | D49: 11:53 | E49: -36.35906 | F49: 142.969611 | G49: 53–59 Aitken Ave Donald VIC 3480Australia | H49: 30552778, 44001343 | I49: CTN006 | J49: 22kV AC | K49: Rural Long | L49: - voltage regulator | M49: three phase | N49: Started in or originated from a distribution system | O49: within area delineated on plan LEGL./16-354 | P49: 4.6 | Q49: No forecast | R49: 0.05 | S49: 0.23 | T49: INC-0018185 | U49: 20220805PWA_02 | V49: Whilst investigating a fault, where a regulator failed to tap, B phase regulator unit started to make noises. Smoke started to be emitted from the top of the regulator unit. | Y49: - overhead service conductor (subdivision / construction)
A50: 17 | B50: 13 | C50: 2022-08-05 | D50: 20:02 | E50: -37.650581 | F50: 143.883763 | G50: Cnr Warrenheip St and Midland Hwy Buninyong | H50: 30012627 | I50: BAS022 | J50: Low voltage AC (<1kV) | K50: Rural Long | L50: - luminaires (major road) | M50: single phase | N50: Started in or originated from a distribution system | O50: LBRA only | P50: 0.2 | Q50: No forecast | R50: 0.05 | S50: 0.01 | T50: INC-0018206 | U50: 20220809PWA_01 | V50: CFA report street light fire at the above address. There was no ground fire, no reported injuries or third party property damage | Y50: - overhead service conductor (other)
A51: 17 | B51: 14 | C51: 2022-08-07 | D51: 17:47 | E51: -36.44605 | F51: 145.391654 | G51: 7580 GOULBURN VALLEY HIGHWAY KIALLA 3631 | H51: 32188707 | I51: MNA024 | J51: Low voltage AC (<1kV) | K51: Rural Short | L51: - dropper / bridge | M51: three phase | N51: Started in or originated from a distribution system | O51: LBRA only | P51: 0.2 | Q51: No forecast | R51: 0.05 | S51: 0.01 | T51: INC-0018188 | U51: 20220808PWA_01 | V51: Reports of damage to leads at pole substation at Shepparton Greyhound Racing Club. On Arrival crew found blue LV lead between transformer and LV isolator had evidence of melting on the insulation. Customer on site advised they had seen some arcing and smelt burning. Crew advised no arcing when they arrived. | Y51: - underground service cable (residential)
A52: 17 | B52: 15 | C52: 2022-08-17 | D52: 09:15 | E52: -38.489426 | F52: 143.200255 | G52: 659 SUNDAY RIDGE ROAD,SIMPSON,VIC,3266 | H52: 30562280 | I52: COB011 | J52: 22kV AC | K52: Rural Long | L52: - voltage regulator | M52: three phase | N52: Started in or originated from a distribution system | O52: HBRA only | P52: 1 | Q52: No forecast | R52: 0.05 | S52: 0.05 | T52: INC-0018279 | U52: 20220818PWA_01 | V52: Report received from customer of transformer sparking. On arrival crew found that HV connection had failed on Gas switch at regulator structure. Member of public has taken photo showing arcing, sparking and fire. Regulator name COB-SSN P342A P342B. There was no ground fire | Y52: - underground service cable (commercial / industrial)
A53: 17 | B53: 16 | C53: 2022-08-17 | D53: 07:03 | E53: -37.840019 | F53: 144.85505 | G53: 76 Mills St, Altona North VIC 3025, | H53: 30250734 | I53: BLT030 | J53: Low voltage AC (<1kV) | K53: Urban | L53: - switch (disconnector/isolator) | M53: three phase | N53: Started in or originated from a distribution system | O53: LBRA only | P53: 0.2 | Q53: No forecast | R53: 0.05 | S53: 0.01 | T53: INC-0018601 | U53: 20220926PWA_03 | V53: Report of arcing and sparking on substation outside 76 Mills St, Altona North VIC 3025,. On arrival crew found an FSD had burnt out. There was no ground fire, no reported injuries or third party property damage. Found during outage data review | Y53: - underground service cable (subdivision / construction)
A54: 17 | B54: 17 | C54: 2022-08-21 | D54: 00:00 | E54: -37.029791 | F54: 143.679825 | G54: 268 Adelaide Lead-Alma Rd, Alma VIC 3465 | H54: 32023910 | I54: MRO005 | J54: Low voltage AC (<1kV) | K54: Rural Long | L54: - connection box | M54: single phase | N54: Started in or originated from a distribution system | O54: within area delineated on plan LEGL./16-354 | P54: 4.6 | Q54: No forecast | R54: 0.05 | S54: =IF(OR(P54="",R54=""),"",IF(AND(O54="within electric line construction area",Q54="No forecast"),1,P54*R54)) -> 0.23 | T54: INC-0018298 | U54: 20220822PWA_01 | V54: Customer reported fire on pole, with the CFA on route. Upon arrival Maryborough fault crew found FOLCB on Alma P13 had melted due to overheating, molten material candling resulted in minor charring of pole, no ground fire occurred. | Y54: - underground service cable (other)
A55: 17 | B55: 18 | C55: 2022-08-22 | D55: 12:42 | E55: -37.760026 | F55: 144.587932 | G55: PUMPING FACILITY,BUTLERS ROAD,MOUNT COTTRELL,VIC,3024 | H55: 33075931 | I55: MLN011 | J55: Low voltage AC (<1kV) | K55: Rural Short | L55: - crossarm (wood) | M55: three phase | N55: Started in or originated from a distribution system | O55: HBRA only | P55: 1 | Q55: No forecast | R55: 0.05 | S55: 0.05 | T55: INC-0018462 | U55: 20220908PWA_01 | V55: Low voltage identified by meter, attending crew found damaged LV isolator, cross-arm near isolator had been burnt and subsequently required replacement no indication of fire in outage case notes , however image found during data checking 07/09/2022 shows fire | Y55: Underground cables
A56: 17 | B56: 19 | C56: 2022-08-23 | D56: 06:35 | E56: -36.468994 | F56: 145.388514 | G56: 24 Devine Rd, Kialla West VIC 3631 | H56: 30130911 | I56: STN021 | J56: 22kV AC | K56: Rural Short | L56: - fuse (EDO fuse) | M56: three phase | N56: Started in or originated from a distribution system | O56: LBRA only | P56: 0.2 | Q56: No forecast | R56: 0.05 | S56: 0.01 | T56: INC-0018602 | U56: 20220926PWA_04 | V56: Reports of part supply. On arrival crew found Burnt EDO Fuse barrel. There was no ground fire Found during outage data review No photos taken | Y56: - underground cable
A57: 17 | B57: 20 | C57: 2022-08-24 | D57: 08:33 | E57: -37.537966 | F57: 143.920628 | G57: 44 Stringybark Dr, Brown Hill VIC 3350 | H57: 33002784 | I57: BAN015 | J57: Low voltage AC (<1kV) | K57: Rural Short | L57: - connection box | M57: single phase | N57: Started in or originated from a distribution system | O57: within area delineated on plan LEGL./16-354 | P57: 4.6 | Q57: No forecast | R57: 0.05 | S57: 0.23 | T57: INC-0018329 | U57: 20220824PWA_01 | V57: Notification was received from dispatch of pole fire at customers property. Upon arrival crew found that the pole mounted FOLCB was totally destroyed by fire. No ground fire resulted from incident. | Y57: - underground communications cable
A58: 17 | B58: 21 | C58: 2022-08-27 | D58: 09:37 | E58: -36.386241 | F58: 144.909106 | G58: 1117 Winter Rd, Timmering VIC | H58: 32190783 | I58: SHP011 | J58: 22kV AC | K58: Rural Short | L58: - crossarm (wood) | M58: three phase | N58: Started by any other thing forming part of or coming into contact with a distribution system | O58: LBRA only | P58: 0.2 | Q58: No forecast | R58: 0.05 | S58: 0.01 | T58: INC-0018378 | U58: 20220831PWA_01 | V58: Customers reported brown out conditions. Crew patrolling line found conductor had dislodged and was sitting on cross-arm leaving a small burn. crew considered that vehicle impact with pole was probable cause. There was no ground fire, no reported injuries or third party property damage. | Y58: Poles
A59: 17 | B59: 22 | C59: 2022-08-29 | D59: 12:10 | E59: -35.643554 | F59: 143.472408 | G59: 509 Bennett Rd, Lalbert VIC 3542, Australia | H59: 32019389 | I59: SHL001 | J59: 12.7kV AC (SWER) | K59: Rural Long | L59: - pole (wood) | M59: single wire earth return (SWER) | N59: Started by lightning striking a distribution system or a part of a distribution system | O59: HBRA only | P59: 1 | Q59: No forecast | R59: 0.05 | S59: 0.05 | T59: INC-0018367 | U59: 20220830PWA_01 | V59: Customer reported There is a wire down in the paddock clear access - looks like a lightening has hit the pole Attending crew found pole 15 destroyed by lightning, protection operated, asset fire only | Y59: - pole (concrete)
A60: 17 | B60: 23 | C60: 2022-09-13 | D60: 06:09 | E60: -38.223197 | F60: 143.638563 | G60: 5 Kerrs Rd, Ondit VIC 3249 | H60: 32062475 | I60: CLC006 | J60: Low voltage AC (<1kV) | K60: Rural Long | L60: - connection box | M60: three phase | N60: Started in or originated from a distribution system | O60: within area delineated on plan LEGL./16-354 | P60: 4.6 | Q60: No forecast | R60: 0.05 | S60: 0.23 | T60: INC-0018519 | U60: 20220914PWA_01 | V60: Firecom reported pole fire at pole 2 Goodie Farm (LIS 3390). On arrival crew found low voltage fuse box caught fire and burnt through the low voltage underground cable insulation. There was no ground fire, no reported injuries or third party property damage. | Y60: - pole (steel)
A61: 17 | B61: 24 | C61: 2022-09-15 | D61: 13:16 | E61: -35.725562 | F61: 144.095326 | G61: 85 Poole Road Koroop 3579 | H61: 30029379 | I61: KGT003 | J61: 12.7kV AC (SWER) | K61: Rural Long | L61: - overhead conductor (bare; steel) | M61: single wire earth return (SWER) | N61: Started by any tree, or part of a tree, falling upon or coming into contact with a distribution system | O61: LBRA only | P61: 0.2 | Q61: No forecast | R61: 0.05 | S61: 0.01 | T61: INC-0018535 | U61: 20220916PWA_01 | V61: Following a supply interruption crew arranged patrol of area. Crew found a tree branch had fallen and brought line to ground. There was a small grass fire There was no reported injuries or third party property damage. | Y61: - pole (wood)
A62: 17 | B62: 25 | C62: 2022-09-20 | D62: 23:07 | E62: -38.013775 | F62: 144.028241 | G62: 113 Eagle Ct, Teesdale VIC 3328 | H62: 33046794 | I62: GL012 | J62: Low voltage AC (<1kV) | K62: Rural Long | L62: - connection box | M62: single phase | N62: Started in or originated from a distribution system | O62: within area delineated on plan LEGL./16-354 | P62: 4.6 | Q62: No forecast | R62: 0.05 | S62: 0.23 | T62: INC-0018583 | U62: 20220921PWA_02 | V62: Crew attending fault found pole type junction box had burnt. There was no ground fire or reported injuries | Y62: Crossarms
A63: 17 | B63: 26 | C63: 2022-09-25 | D63: 06:47 | E63: -36.765422 | F63: 144.25915 | G63: 286 Rowan St, Golden Square VIC 3555 | H63: 30023321 | I63: BET008 | J63: Low voltage AC (<1kV) | K63: Urban | L63: - overhead service conductor (residential) | M63: single phase | N63: Started in or originated from a distribution system | O63: LBRA only | P63: 0.2 | Q63: No forecast | R63: 0.05 | S63: 0.01 | T63: INC-0018589 | U63: 20220926PWA_02 | V63: Customer reported supply interruption, also observing burnt POA junction | Y63: - crossarm (wood)
A64: 17 | B64: 27 | C64: 2022-10-07 | D64: 17:11 | E64: -38.15083 | F64: 144.371831 | G64: 21 Pevensey Crescent, Geelong | H64: 32069786 | I64: GCY024 | J64: Low voltage AC (<1kV) | K64: Urban | L64: - fuse (any other type) | M64: single phase | N64: Started in or originated from a distribution system | O64: LBRA only | P64: 0.2 | Q64: No forecast | R64: 0.05 | S64: 0.01 | T64: INC-0018731 | U64: 20221010PWA_02 | V64: Fire Comms reported a house fire at the above address. When the crew arrived they found that the meter box had burnt around the meter fuse. There was no ground fire, no reported injuries | Y64: - crossarm (steel)
A65: 17 | B65: 28 | C65: 2022-10-09 | D65: 19:26 | E65: -37.354687 | F65: 144.725953 | G65: 37 TARRAWARRA LANE,ROMSEY,VIC,3434 | H65: 33029785 | I65: WND012 | J65: Low voltage AC (<1kV) | K65: Rural Long | L65: - connection box | M65: single phase | N65: Started in or originated from a distribution system | O65: within area delineated on plan LEGL./16-354 | P65: 4.6 | Q65: No forecast | R65: 0.05 | S65: 0.23 | T65: INC-0018717 | U65: 20221010PWA_01 | V65: Report of pole fire at incident location. On arrival crew found a Folcb had been on fire. There was no ground fire, no reported injuries. | Y65: - crossarm (other)
A66: 17 | B66: 29 | C66: 2022-10-12 | D66: 12:07 | E66: -35.91868 | F66: 144.023187 | G66: Macorna Rd, Macorna VIC 3579 | H66: 30026926 | I66: CHA006 | J66: 22kV AC | K66: Rural Long | L66: - insulators | M66: three phase | N66: Started in or originated from a distribution system | O66: HBRA only | P66: 1 | Q66: No forecast | R66: 0.05 | S66: 0.05 | T66: INC-0019477 | U66: 20230105PWA_01 | V66: During inspection burnt crossarm found at incident location. There was no ground fire Incident found during outage data review | Y66: Overhead assets
A67: 17 | B67: 30 | C67: 2022-10-20 | D67: 12:10 | E67: -34.206105 | F67: 142.167161 | G67: 486 BENETOOK AVENUE, MILDURA,VIC,3500 | H67: 33064849 | I67: MDA024 | J67: Low voltage AC (<1kV) | K67: Rural Short | L67: - overhead service conductor (commercial / industrial) | M67: single phase | N67: Started in or originated from a distribution system | O67: LBRA only | P67: 0.2 | Q67: No forecast | R67: 0.05 | S67: 0.01 | T67: INC-0018825 | U67: 20221021PWA_01 | V67: Pole caught fire at the service wire attachment (pole end). Wire is still attached at pole end. | Y67: - capacity balancing units
A68: 17 | B68: 31 | C68: 2022-10-24 | D68: 20:25 | E68: -38.398584 | F68: 143.553202 | G68: 75 Everett Crescent, Barongarook West 3249 | H68: 30051870 | I68: CLC003 | J68: 22kV AC | K68: Rural Long | L68: - overhead conductor (bare; all aluminium conductor) | M68: three phase | N68: Started by any tree, or part of a tree, falling upon or coming into contact with a distribution system | O68: within area delineated on plan LEGL./16-354 | P68: 4.6 | Q68: No forecast | R68: 0.05 | S68: 0.23 | T68: INC-0018846 | U68: 20221025PWA_02 | V68: A customer reported that a tree was touching the wires and had caught fire. On arrival the crew found that a pine tree had fallen against the 22kV conductors between Pole 9 Everett Spur (LIS-19066) & Pole 10 Everett Spur (LIS-19067). The crew isolated the supply and extinguished the small fire in the tree. There was no ground fire, no injuries, and no third-party damage reported | Y68: - connector / termination
A69: 17 | B69: 32 | C69: 2022-10-24 | D69: 16:28 | E69: -37.593986 | F69: 144.107569 | G69: 64 Evergreen Way, Gordon VIC 3345 | H69: 33003849 | I69: BAN003 | J69: 22kV AC | K69: Urban | L69: - overhead conductor (bare; steel) | M69: three phase | N69: Started by any tree, or part of a tree, falling upon or coming into contact with a distribution system | O69: within area delineated on plan LEGL./16-354 | P69: 4.6 | Q69: No forecast | R69: 0.05 | S69: 0.23 | T69: INC-0019484 | U69: 20230105PWA_03 | V69: Tree reported on HV Tree broke 22kV O/H Cond. Between P3 Shamrock& P4 Shamrock Tree on wire - arcing and sparking - started fire as per brigade. Found during OMS data review No photos found | Y69: - dropper / bridge
A70: 17 | B70: 33 | C70: 2022-10-25 | D70: 02:21 | E70: -36.459181 | F70: 142.031998 | G70: 10 Denham St, Dimboola | H70: 33052183 | I70: HSM006 | J70: Low voltage AC (<1kV) | K70: Rural Long | L70: - connection box | M70: single phase | N70: Started in or originated from a distribution system | O70: LBRA only | P70: 0.2 | Q70: No forecast | R70: 0.05 | S70: 0.01 | T70: INC-0018844 | U70: 20221025PWA_01 | V70: CFA reported pole fire and attended. Crew did not see CFA on site, must have left before they arrived. Crew attending found LV service fuse box had fire damage. There were no injuries or other damage found. | Y70: - guy wire
A71: 17 | B71: 34 | C71: 2022-10-27 | D71: 04:11 | E71: -36.06552 | F71: 141.737933 | G71: Marshalls Rd, Netherby VIC 3418, Australia | H71: 30603926 | I71: NHL016 | J71: 22kV AC | K71: Rural Long | L71: - insulators | M71: three phase | N71: Started in or originated from a distribution system | O71: HBRA only | P71: 1 | Q71: No forecast | R71: 0.05 | S71: 0.05 | T71: INC-0019485 | U71: 20230105PWA_04 | V71: 3 phase tee off pole burnt There was no ground fire. Found during oms data review | Y71: - insulator tie wires / connections
A72: 17 | B72: 35 | C72: 2022-11-19 | D72: 23:11 | E72: -36.262695 | F72: 144.589883 | G72: Bamawm Sports Centre and Oval, 714 Bamawm Hall Rd, Bamawm VIC 3561 | H72: 30143073 | I72: ECA012 | J72: Low voltage AC (<1kV) | K72: Rural Long | L72: - fuse (any other type) | M72: three phase | N72: Started in or originated from a distribution system | O72: LBRA only | P72: 0.2 | Q72: No forecast | R72: 0.05 | S72: 0.01 | T72: INC-0019061 | U72: 20221121PWA_02 | V72: Fire comms reported pole fire at above address. On arrival crew found pole that was burning near FSD. FSD and associated cabling melted. | Y72: - insulators
A73: 17 | B73: 36 | C73: 2022-11-19 | D73: 16:42 | E73: -38.379786 | F73: 142.72713 | G73: 861 Swans Road, Naringal | H73: 30134171 | I73: WBL002 | J73: 22kV AC | K73: Rural Short | L73: - transformer (pole mounted) | M73: three phase | N73: Started in or originated from a distribution system | O73: HBRA only | P73: 1 | Q73: No forecast | R73: 0.05 | S73: 0.05 | T73: INC-0019070 | U73: 20221121PWA_04 | V73: Vic Fire reported a transformer fire at the above address. The crew attended and confirmed Faulted bushing and fire at the transformer. | Y73: - tower
A74: 17 | B74: 37 | C74: 2022-12-02 | D74: 11:49 | E74: -38.46748 | F74: 144.066514 | G74: 2 Old Neuk Rd, Moggs Creek VIC 3231 | H74: 32070040 | I74: WPD014 | J74: Low voltage AC (<1kV) | K74: Rural Short | L74: - overhead service conductor (residential) | M74: single phase | N74: Started in or originated from a distribution system | O74: within area delineated on plan LEGL./16-354 | P74: 4.6 | Q74: No forecast | R74: 0.05 | S74: 0.23 | T74: INC-0019201 | U74: 20221205PWA_01 | V74: Customer notification was received wires sparking in front of property. Upon arrival crew noted that customers mains fuse box was on fire. Fire damage to facia and service cable was evident. | Y74: - traction lines
A75: 17 | B75: 38 | C75: 2022-12-02 | D75: 17:00 | E75: -37.760026 | F75: 144.587931 | G75: 77-207 BUTLERS ROAD, MOUNT COTRELL | H75: 33075931 | I75: MLN011 | J75: Low voltage AC (<1kV) | K75: Rural Short | L75: - switch (disconnector/isolator) | M75: three phase | N75: Started in or originated from a distribution system | O75: HBRA only | P75: 1 | Q75: No forecast | R75: 0.05 | S75: =IF(OR(P75="",R75=""),"",IF(AND(O75="within electric line construction area",Q75="No forecast"),1,P75*R75)) -> 0.05 | T75: INC-0019202 | U75: 20221205PWA_02 | V75: Powercor received a report of fire after customer turned on water pump Attending crew found connection on LV fused isolator had overheated and small ground fire occurred at the base of the pole. | Y75: Underground assets
A76: =COUNTA(C76:O76,Q76,T76:V76) -> 17 | B76: 39 | C76: 2022-12-08 | D76: 13:24 | E76: -36.471787 | F76: 145.322394 | G76: 365 Pogue Rd, Toolamba VIC 3614 | H76: 30354787 | I76: MNA034 | J76: 22kV AC | K76: Rural Long | L76: - fuse (boric acid) | M76: three phase | N76: Started in or originated from a distribution system | O76: LBRA only | P76: =IF(O76="","",IF(O76="LBRA only",0.2,IF(O76="HBRA only",1,IF(O76="within electric line construction area",19.8,IF(O76="within area delineated on plan LEGL./16-354",4.6,""))))) -> 0.2 | Q76: Moderate | R76: 0.334 | S76: 0.0668 | T76: INC-0019274 | U76: 20221209PWA_01 | V76: Customer advised Powercor of an outage and fire that was not related to Powercor equipment. Report subsequently received from firecomms - pole fire - corner of Toolamba and Pogue Rd Attending crew found one Boric acid fuse had candled and other fuses had operated | Y76: - LV pillar
A77: 17 | B77: 40 | C77: 2022-12-08 | D77: 19:07 | E77: -37.164786 | F77: 142.53535 | G77: 394-404 Grampians Rd, Halls Gap VIC 3381 | H77: 32100561 | I77: STL005 | J77: 22kV AC | K77: Rural Long | L77: - overhead conductor (bare; aluminium core steel reinforced) | M77: three phase | N77: Started by any tree, or part of a tree, falling upon or coming into contact with a distribution system | O77: within area delineated on plan LEGL./16-354 | P77: 4.6 | Q77: Moderate | R77: 0.334 | S77: 1.5364 | T77: INC-0019275 | U77: 20221209PWA_02 | V77: A tree branch has landed on a tee off pole 251 Halls Gap line and caused a line outage from ACR pole 121 Halls Gap, A patrol has found the branch and it was removed with a telescopic stick There was evidence of burning on branch, no injuries or third party property damage | Y77: - services pit
A78: 17 | B78: 41 | C78: 2022-12-08 | D78: 13:28 | E78: -37.80539 | F78: 144.308697 | G78: 531 Brisbane Rd, Balliang VIC 3340, Australia | H78: 30102461 | I78: BMH006 | J78: 12.7kV AC (SWER) | K78: Rural Long | L78: - insulators | M78: single wire earth return (SWER) | N78: Started in or originated from a distribution system | O78: HBRA only | P78: 1 | Q78: Moderate | R78: 0.334 | S78: 0.334 | T78: INC-0019277 | U78: 20221209PWA_03 | V78: Report of pole fire and small ground fire at incident location. Pole fire has burnt through pole top causing pole top and conductor to fall to ground. There was a small grass fire of approx. 20sq m. There was no reported injuries or third party property damage | Y78: Transformers
A79: 17 | B79: 42 | C79: 2022-12-10 | D79: 20:45 | E79: -36.357686 | F79: 144.909094 | G79: 1120 Webb Rd, Timmering VIC 3561 | H79: 33096564 | I79: KYM001 | J79: 22kV AC | K79: Rural Long | L79: Overhead conductors | M79: three phase | N79: Started by any person, bird, reptile or other animal coming into contact with a distribution system | O79: LBRA only | P79: 0.2 | Q79: Moderate | R79: 0.334 | S79: 0.0668 | T79: INC-0019288 | U79: 20221212PWA_03 | V79: Vic Fire reported sparking pole has caused grass fire. Upon arrival crew found that a bird had caused a flashover that subsequently started a grass fire. CFA extinguished fire. Approx. 10m X 10m area of grass burnt No damage to PCA assets or customer property. No Injuries. | Y79: - transformer (pole mounted)
A80: 17 | B80: 43 | C80: 2022-12-23 | D80: 19:20 | E80: -37.056801 | F80: 143.85382 | G80: 3743 Pyrenees Hwy, Carisbrook VIC 3464 | H80: 30151312 | I80: MRO007 | J80: 22kV AC | K80: Rural Long | L80: - connector / termination | M80: three phase | N80: Started in or originated from a distribution system | O80: within area delineated on plan LEGL./16-354 | P80: 4.6 | Q80: Moderate | R80: 0.334 | S80: 1.5364 | T80: INC-0019413 | U80: 20221229PWA_01 | V80: CFA reported fire started by PAL asset at incident location. Upon arrival fault crew found that a helical termination holding conductor had released conductor onto steel crossarm,and burnt pole. a small ground fired occurred | Y80: - transformer (kiosk mounted)
A81: 17 | B81: 44 | C81: 2022-12-27 | D81: 01:40 | E81: -36.255171 | F81: 141.670547 | G81: Nhill - Netherby Rd, Nhill - 300m Nth of A Bones Rd | H81: 31014589 | I81: NHL016 | J81: 22kV AC | K81: Rural Long | L81: - overhead conductor (bare; steel) | M81: three phase | N81: Started by any other thing forming part of or coming into contact with a distribution system | O81: HBRA only | P81: 1 | Q81: High | R81: 0.678 | S81: 0.678 | T81: INC-0019433 | U81: 20221229PWA_07 | V81: At approx. 0140 hrs, a header which was harvesting wheat made contact with the 22KV HV line between Netherby Pole 53 and Reichelt Pole 1. The header made contact with the HV conductor near Pole 1. There was no third party damage or injury as a result of the contact. A small grass fire approx. 300mm x 300m started near one wheel of the header. There was evidence of stay having part pull out of ground at t/pole 53 The farmer extinguished this fire. The CFA did not attend. | Y81: - transformer (ground outdoor mounted)
A82: 17 | B82: 45 | C82: 2022-12-31 | D82: 15:00 | E82: -37.583518 | F82: 143.875155 | G82: 15 Elsworth St E, Canadian VIC 3350 | H82: 32004250 | I82: BATBAS2 | J82: 66kV AC | K82: Unknown | L82: - insulators | M82: three phase | N82: Started by any other thing forming part of or coming into contact with a distribution system | O82: LBRA only | P82: 0.2 | Q82: Moderate | R82: 0.334 | S82: 0.0668 | T82: INC-0019463 | U82: 20230103PWA_04 | V82: CFA reported a fire at base of pole. Attending crew found foil party balloons had caused flashover of bridging insulator and a small ground fire ensued | Y82: - transformer (indoor chamber mounted)
A83: 17 | B83: 46 | C83: 2023-01-06 | D83: 17:44 | E83: -37.614126 | F83: 143.873355 | G83: 1504 Geelong rd, Mount Clear, VIC 3350 | H83: 30000296 | I83: BAS032 | J83: 22kV AC | K83: Rural Short | L83: - overhead conductor (bare; all aluminium conductor) | M83: three phase | N83: Started by any tree, or part of a tree, falling upon or coming into contact with a distribution system | O83: within area delineated on plan LEGL./16-354 | P83: 4.6 | Q83: Moderate | R83: 0.334 | S83: 1.5364 | T83: INC-0019495 | U83: 20230109PWA_01 | V83: Dispatch advised by CFA trhat conductor on ground anns small grass fire at incident location. On arrival crew advised that a large Gum tree from across road has fallen on conductors Grass fore around 90 sq mtrs There were no injuries or third party property damage. | Y83: - transformer (any other type)
A84: 17 | B84: 47 | C84: 2023-01-08 | D84: 13:46 | E84: -38.305845 | F84: 142.484474 | G84: 143 Plummers Hill Rd, Woodford VIC 3281 | H84: 33102493 | I84: KRT012 | J84: Low voltage AC (<1kV) | K84: Rural Long | L84: - connection box | M84: single phase | N84: Started in or originated from a distribution system | O84: within area delineated on plan LEGL./16-354 | P84: 4.6 | Q84: Moderate | R84: 0.334 | S84: 1.5364 | T84: INC-0019496 | U84: 20230109PWA_02 | V84: Emergency Services reported a pole fire at incident location. On arrival crew found an LV FOLCB had overheated, fuse holder dislodged and fell to ground igniting a small grass fire. There were no reported injuries or third party property damage. | Y84: - measurement transformer (current transformer)
A85: 17 | B85: 48 | C85: 2023-01-09 | D85: 08:10 | E85: -38.206809 | F85: 141.828821 | G85: 221 SETTLERS ROAD, TYRENDARRA, VIC,3285 | H85: 30340694 | I85: PLD001 | J85: 12.7kV AC (SWER) | K85: Rural Long | L85: - insulators | M85: single wire earth return (SWER) | N85: Started in or originated from a distribution system | O85: HBRA only | P85: 1 | Q85: Moderate | R85: 0.334 | S85: 0.334 | T85: INC-0019500 | U85: 20230109PWA_03 | V85: Report received of wire down and fire in paddock. On arrival crew found pole fire, pole top had burnt and fallen, causing a small spot fire. There were no injuries or third party property damage. | Y85: - measurement transformer (voltage transformer)
A86: 17 | B86: 49 | C86: 2023-01-09 | D86: 13:45 | E86: -38.099895 | F86: 144.34466 | G86: 361-367 Thompson Rd, Bell Park VIC 3215 | H86: 32077966 | I86: CRO022 | J86: Low voltage AC (<1kV) | K86: Urban | L86: Overhead conductors | M86: three phase | N86: Started by any other thing forming part of or coming into contact with a distribution system | O86: LBRA only | P86: 0.2 | Q86: Moderate | R86: 0.334 | S86: 0.0668 | T86: INC-0019504 | U86: 20230110PWA_02 | V86: Report received from Vic fire following high winds there is debris entangled in lines at incident location, wires in contact with truck and fence. There was a small patch of grass burnt (6 sq m) There were no reported injuries | Y86: - measurement transformer (capacitive voltage transformer)
A87: 17 | B87: 50 | C87: 2023-01-10 | D87: 04:52 | E87: -38.106005 | F87: 143.082662 | G87: 115 KILNOORAT ROAD, BOOKAAR, VIC, 3260 | H87: 30151165 | I87: CDN006 | J87: Low voltage AC (<1kV) | K87: Rural Long | L87: - switch (disconnector/isolator) | M87: three phase | N87: Started in or originated from a distribution system | O87: within area delineated on plan LEGL./16-354 | P87: 4.6 | Q87: Moderate | R87: 0.334 | S87: 1.5364 | T87: INC-0019503 | U87: 20230110PWA_01 | V87: Customer reported the transformer pole had caught fire and bringing the wire to ground. A crew was dispatched to investigate. On arrival, they confirmed the service krone box had caught fire. No wire fell to the ground as originally reported. There was no ground fire. no reported injuries or third party property damage | Y87: Fuses and switchgear
A88: 17 | B88: 51 | C88: 2023-01-11 | D88: 07:44 | E88: -37.666884 | F88: 144.599074 | G88: 203 Gisborne Melton Road KURUNJANG | H88: 60077427 | I88: MLN012 | J88: Low voltage AC (<1kV) | K88: Rural Short | L88: - LV pillar | M88: three phase | N88: Started in or originated from a distribution system | O88: LBRA only | P88: 0.2 | Q88: Moderate | R88: 0.334 | S88: 0.0668 | T88: INC-0019516 | U88: 20230112PWA_03 | V88: Report received from Vic fire of pillar on fire, possible damage to vehicle. On arrival crew found a pillar had overheated and caught fire. There was minor damage to vehicle parked adjacent. No reported injuries. | Y88: - fuse (boric acid)
A89: 17 | B89: 52 | C89: 2023-01-12 | D89: 08:01 | E89: -37.291348 | F89: 142.931983 | G89: 35 Elizabeth St, Ararat VIC 3377 | H89: 32104418 | I89: ART034 | J89: 22kV AC | K89: Rural Short | L89: - insulators | M89: three phase | N89: Started in or originated from a distribution system | O89: LBRA only | P89: 0.2 | Q89: High | R89: 0.678 | S89: 0.1356 | T89: INC-0019519 | U89: 20230112PWA_05 | V89: Crew responded to a fault. Upon arrival the crew found that HV strain crossarm was burnt likely due to insulator leakage. One phase of HV was dislodged & was resting on LV circuit underneath. There was no ground fire or shock / injury. | Y89: - fuse (EDO fuse)
A90: 17 | B90: 53 | C90: 2023-01-12 | D90: 14:31 | E90: -37.848085 | F90: 144.857916 | G90: 15 Fink St, Williamstown North, VIC 3016 | H90: 32172601 | I90: BLT030 | J90: 22kV AC | K90: Urban | L90: - dropper / bridge | M90: three phase | N90: Started in or originated from a distribution system | O90: LBRA only | P90: 0.2 | Q90: Moderate | R90: 0.334 | S90: 0.0668 | T90: INC-0019522 | U90: 20230113PWA_01 | V90: Fire authority advised of pole fire at incident location. Upon arrival crew found that HV bridge was burnt with evidence of approximately 150m2 (10m x 15m) grass fire. the conductor didn't come to ground. | Y90: - fuse (Fault Tamer)
A91: 17 | B91: 54 | C91: 2023-01-15 | D91: 15:37 | E91: -38.339828 | F91: 142.319524 | G91: 1216 Princes Hwy, Killarney | H91: 30138173 | I91: KRT022 | J91: 22kV AC | K91: Rural Short | L91: - switch (disconnector/isolator) | M91: three phase | N91: Started in or originated from a distribution system | O91: within area delineated on plan LEGL./16-354 | P91: 4.6 | Q91: High | R91: 0.678 | S91: 3.1188 | T91: INC-0019551 | U91: 20230116PWA_04 | V91: Police reported small grass fire in believed to be caused by sparks from wires at pole 108 LIS-4146 (SW 31412) On arrival crew noticed a burn section of grass just inside the paddock that was already out. Crew could not determine the cause of the sparks / fire from the immediate electrical assets. | Y91: - fuse (powder filled)
A92: 17 | B92: 55 | C92: 2023-01-15 | D92: 20:59 | E92: -36.13465 | F92: 141.434768 | G92: 16 Maude St, Yanac VIC 3418, Australia | H92: 30317737 | I92: NHL031 | J92: 22kV AC | K92: Rural Long | L92: - dropper / bridge | M92: three phase | N92: Started in or originated from a distribution system | O92: HBRA only | P92: 1 | Q92: High | R92: 0.678 | S92: 0.678 | T92: INC-0019561 | U92: 20230117PWA_01 | V92: CFA reported a transformer fire at the above address and grass fire. A Powercor crew attended and found that the HV dropper leader to the transformer had failed where it connects to the HV bushing of the transformer. The failed lead started a grass fire which burnt an area approx 30x40 metres. There was no reported injuries | Y92: - fuse (any other type)
A93: 17 | B93: 56 | C93: 2023-01-18 | D93: 12:34 | E93: -38.237488 | F93: 143.991375 | G93: 12 Austin St, Winchelsea VIC 3241 | H93: 30053378 | I93: WIN011 | J93: Low voltage AC (<1kV) | K93: Rural Long | L93: Overhead conductors | M93: three phase | N93: Started by any other thing forming part of or coming into contact with a distribution system | O93: LBRA only | P93: 0.2 | Q93: Moderate | R93: 0.334 | S93: 0.0668 | T93: INC-0019587 | U93: 20230119PWA_01 | V93: Report received of conductor down across roadway at incident location. On arrival crew found two conductors on ground and slight burning to grass. No direct cause observed, possible unknown vehicle has contacted conductors. There were no reported injuries or third party property damage. | Y93: - circuit breaker
A94: 17 | B94: 57 | C94: 2023-01-22 | D94: 09:54 | E94: -36.273259 | F94: 143.632631 | G94: Williamsons Rd, Wychitella VIC 3525, Australia | H94: 32028955 | I94: CTN001 | J94: 12.7kV AC (SWER) | K94: Rural Long | L94: - pole (wood) | M94: single wire earth return (SWER) | N94: Started by lightning striking a distribution system or a part of a distribution system | O94: within area delineated on plan LEGL./16-354 | P94: 4.6 | Q94: Moderate | R94: 0.334 | S94: 1.5364 | T94: INC-0019623 | U94: 20230123PWA_03 | V94: Following supply failure calls a patrol found a SWER pole had been struck by lightning and destroyed. Conductor came to gound. There was a 10 HA grass fire ignited. There were no injuries reported. | Y94: - switch (disconnector/isolator)
A95: 17 | B95: 58 | C95: 2023-01-23 | D95: 16:11 | E95: -37.54477 | F95: 143.797872 | G95: 5 Ring Rd Alfredton 3350 | H95: 33000246 | I95: BAS024 | J95: 22kV AC | K95: Rural Short | L95: Overhead conductors | M95: three phase | N95: Started by any other thing forming part of or coming into contact with a distribution system | O95: LBRA only | P95: 0.2 | Q95: Moderate | R95: 0.334 | S95: 0.0668 | T95: INC-0019630 | U95: 20230130PWA_03 | V95: Crew were called to address after feeder reclosed and found that a sheet of iron had blown up into the HV conductors causing a small grass fire | Y95: - switch (earth)
A96: 17 | B96: 59 | C96: 2023-01-23 | D96: 19:50 | E96: -36.391626 | F96: 145.420387 | G96: 53 Fordyce St, Shepparton VIC 3630 | H96: 33091318 | I96: STN021 | J96: 22kV AC | K96: Rural Short | L96: - insulators | M96: three phase | N96: Started by any other thing forming part of or coming into contact with a distribution system | O96: LBRA only | P96: 0.2 | Q96: Moderate | R96: 0.334 | S96: 0.0668 | T96: INC-0019644 | U96: 20230130PWA_04 | V96: Vic Police have reported a metallic party balloon tangled up in overhead 22kV conductors the previous night. The balloon dislodged and started a grass fire. Crew inspected pole top assets and found no damage to assets but flash marks were observed by on one of the 22kV insulators. Area of fire is 100m squared. | Y96: - switch (FuseSaver)
A97: 17 | B97: 60 | C97: 2023-01-24 | D97: 13:33 | E97: -37.441229 | F97: 144.566081 | G97: 196 BLACK FOREST DRIVE,MACEDON,VIC,3440 | H97: 32050303 | I97: GSB014 | J97: 22kV AC | K97: Rural Short | L97: - fuse (EDO fuse) | M97: three phase | N97: Started in or originated from a distribution system | O97: within area delineated on plan LEGL./16-354 | P97: 4.6 | Q97: Moderate | R97: 0.334 | S97: 1.5364 | T97: INC-0019642 | U97: 20230130PWA_05 | V97: EDO HV Fuse failed to operate correctly, got stuck and started a ground fire of approx. 600m square in size. | Y97: - switch (any other type)
A98: 17 | B98: 61 | C98: 2023-01-24 | D98: 07:26 | E98: -38.265618 | F98: 144.431091 | G98: 1452-1500 Barwon Heads Rd, Connewarre VIC 3227 | H98: 30232765 | I98: WPD022 | J98: Low voltage AC (<1kV) | K98: Rural Short | L98: - connection box | M98: single phase | N98: Started in or originated from a distribution system | O98: within area delineated on plan LEGL./16-354 | P98: 4.6 | Q98: Moderate | R98: 0.334 | S98: 1.5364 | T98: INC-0019631 | U98: 20230130PWA_06 | V98: Pole and ground fire caused by burnt out pole mounted FOLCB (for pole to pit U/G supply). Melted bits of FOLCB landed on ground and started small grass fire approx. 4m square in area. The fire was contained due to high dew level this morning. | Y98: SCADA, network control and protection systems
A99: 17 | B99: 62 | C99: 2023-01-25 | D99: 06:59 | E99: -37.208441 | F99: 142.884143 | G99: 50 Garden Gully Rd, Armstrong VIC 3377 | H99: 30150975 | I99: ART031 | J99: 22kV AC | K99: Rural Short | L99: - fuse (EDO fuse) | M99: three phase | N99: Started in or originated from a distribution system | O99: within area delineated on plan LEGL./16-354 | P99: 4.6 | Q99: High | R99: 0.678 | S99: 3.1188 | T99: INC-0019665 | U99: 20230127PWA_01 | V99: Emergency services reported a pole fire. Upon arrival, crew found HV EDO unit caught fire at the bottom and melted. | Y99: - audio frequency load controller (AFLC)
A100: 17 | B100: 63 | C100: 2023-01-25 | D100: 14:43 | E100: -35.281777 | F100: 141.299351 | G100: 209 Danyo South Rd, Cowangie VIC 3506, Australia | H100: 32149886 | I100: OYN001 | J100: 22kV AC | K100: Rural Long | L100: - insulators | M100: three phase | N100: Started in or originated from a distribution system | O100: HBRA only | P100: 1 | Q100: Moderate | R100: 0.334 | S100: 0.334 | T100: INC-0019921 | U100: 20230216PWA_01 | V100: Wire going from street to pole on paddock, hanging low across road. Cust driving past & saw crossarm is damaged or burnt. No hazards. Actual location about 300m South of property on Danyo S Rd Between 209 Danyo S Road and South Road. On arrival crew found crossarm burnt. There was approx 2 sq mtrs of grass stubble burnt. Incident found during outage data review. | Y100: - arc suppresion coil
A101: 17 | B101: 64 | C101: 2023-01-27 | D101: 12:47 | E101: -37.603973 | F101: 144.548648 | G101: 76 Hoggs Rd, Toolern Vale VIC 3337 | H101: 30114834 | I101: MLN012 | J101: 22kV AC | K101: Rural Short | L101: - fuse (EDO fuse) | M101: three phase | N101: Started in or originated from a distribution system | O101: HBRA only | P101: 1 | Q101: Moderate | R101: 0.334 | S101: 0.334 | T101: INC-0019686 | U101: 20230131PWA_02 | V101: Crew responded to a fault found that HV fuse was candeling There was no ground fire or reported injuries | Y101: - automatic circuit recloser (ACR)
A102: 17 | B102: 65 | C102: 2023-01-28 | D102: 16:39 | E102: -37.651726 | F102: 144.443348 | G102: 55 Fitzroy St, Darley VIC 3340 | H102: 33072238 | I102: MLN022 | J102: Low voltage AC (<1kV) | K102: Rural Short | L102: - switch (disconnector/isolator) | M102: three phase | N102: Started in or originated from a distribution system | O102: LBRA only | P102: 0.2 | Q102: High | R102: 0.678 | S102: 0.1356 | T102: INC-0019672 | U102: 20230130PWA_01 | V102: Emergency services reported pole fire and no power in the area. On arrival, the crew found the 160 amp krone box had caught fire and resulted small grass fire, patch of grass around the base of pole and 1m x 1m south of pole. There was no shocks or injuries. | Y102: - communications linear assets
A103: 17 | B103: 66 | C103: 2023-01-28 | D103: 21:48 | E103: -38.26985 | F103: 141.646781 | G103: 36 Coates Rd, Allestree VIC 3305 | H103: 32132793 | I103: PLD001 | J103: 12.7kV AC (SWER) | K103: Rural Long | L103: - fuse (EDO fuse) | M103: single wire earth return (SWER) | N103: Started in or originated from a distribution system | O103: HBRA only | P103: 1 | Q103: High | R103: =IF(Q103="","",IF(C103>=DATE(2022,9,1),IF(Q103="No forecast",0.05,IF(Q103="Moderate",0.334,IF(Q103="High",0.678,IF(Q103="Extreme",2.272,4.754)))),0.05)) -> 0.678 | S103: 0.678 | T103: INC-0019673 | U103: 20230130PWA_02 | V103: Customer reported pole top on fire, to call fire brigade Attending crew found pole fire had occurred where HV fuse mounting bracket attaches to pole. There was no ground fire | Y103: - communications network assets
A104: 17 | B104: 67 | C104: 2023-01-29 | D104: 10:07 | E104: -37.605075 | F104: 143.78302 | G104: 226 Hendersons Road Smythes Creek 3351 | H104: 33000646 | I104: BAS033 | J104: Low voltage AC (<1kV) | K104: Rural Short | L104: - connection box | M104: three phase | N104: Started in or originated from a distribution system | O104: within area delineated on plan LEGL./16-354 | P104: 4.6 | Q104: Moderate | R104: 0.334 | S104: 1.5364 | T104: INC-0019679 | U104: 20230130PWA_10 | V104: A pole fire was reported at the incident address. On arrival the fault crew found that a multi phase FOLCB controlling an underground service line to a service pit had caught fire and melted. There was a small grass fire of approximately 30cm by 10cm located at the base of the concrete substation pole. CFA attended. FOLCB was replaced OK and supply reconnected. | Y104: - communications site infrastructure
A105: 17 | B105: 68 | C105: 2023-01-29 | D105: 03:38 | E105: -36.406782 | F105: 145.331701 | G105: 210 Simson Rd, Mooroopna VIC 3629, Australia | H105: 32190664 | I105: MNA034 | J105: 22kV AC | K105: Rural Long | L105: - fuse (EDO fuse) | M105: three phase | N105: Started in or originated from a distribution system | O105: LBRA only | P105: 0.2 | Q105: High | R105: 0.678 | S105: 0.1356 | T105: INC-0019689 | U105: 20230131PWA_03 | V105: Customer reported that fuse on pole was on fire but had self-extinguished. Upon arrival, Shepparton fault crew found that 1 HV EDO tube had indeed candled on substation pole "worm 2". No ground fire resulted. | Y105: - field devices
A106: 17 | B106: 69 | C106: 2023-01-30 | D106: 15:51 | E106: -36.115313 | F106: 143.43829 | G106: Fradds Rd, 600M North of Marmal Church Rd, VIC | H106: 32020540 | I106: CTN001 | J106: 12.7kV AC (SWER) | K106: Rural Long | L106: - pole (wood) | M106: single wire earth return (SWER) | N106: Started by lightning striking a distribution system or a part of a distribution system | O106: within area delineated on plan LEGL./16-354 | P106: 4.6 | Q106: Moderate | R106: 0.334 | S106: 1.5364 | T106: INC-0019680 | U106: 20230131PWA_01 | V106: CFA reported ground fire caused by PAL assets as the incident location. Upon arrival Charlton fault crew confirmed fire commenced from pole LIS 601702 (Regan 11), evidence of a recent lightning strike on pole, it appears lightning possibly 36 hours earlier has commenced internal burning of the timber pole, eventually emanating from within and commencing the ground fire. Pole top assets in good condition thus electrical tracking ruled out as a possible cause. | Y106: - local network wiring assets
A107: 17 | B107: 70 | C107: 2023-02-02 | D107: 21:03 | E107: -36.299004 | F107: 144.530888 | G107: 1493 PRAIRIE-ROCHESTER RD - LOCKINGTON | H107: 31026032 | I107: SHP012 | J107: 22kV AC | K107: Rural Long | L107: - overhead conductor (bare; aluminium core steel reinforced) | M107: three phase | N107: Started by any tree, or part of a tree, falling upon or coming into contact with a distribution system | O107: LBRA only | P107: 0.2 | Q107: High | R107: 0.678 | S107: =IF(OR(P107="",R107=""),"",IF(AND(O107="within electric line construction area",Q107="No forecast"),1,P107*R107)) -> 0.1356 | T107: INC-0019780 | U107: 20230206PWA_02 | V107: Report received of Branch contacting conductors and reports fire. On arrival crew found that a pine tree had contacted line and branch burnt off. There was no ground fire, no reported injuries or third party property damage. | Y107: - master station assets
A108: 17 | B108: 71 | C108: 2023-02-04 | D108: 01:20 | E108: -36.119062 | F108: 144.822586 | G108: 449 BANGERANG ROAD,ECHUCA VILLAGE,VIC,3564 | H108: 30246554 | I108: ECA003 | J108: 22kV AC | K108: Rural Short | L108: - switch (any other type) | M108: three phase | N108: Started by any person, bird, reptile or other animal coming into contact with a distribution system | O108: LBRA only | P108: 0.2 | Q108: High | R108: 0.678 | S108: 0.1356 | T108: INC-0019777 | U108: 20230206PWA_01 | V108: Report of flashover at incident location. On arrival crew found a possum has flashed over at bottom of switch structure. There was a small fire at the base of the pole. There were no reported injuries or third party property damage. | Y108: - neutral earthing resistor
A109: 17 | B109: 72 | C109: 2023-02-07 | D109: 09:39 | E109: -35.973306 | F109: 143.226031 | G109: 1222 CALDER HIGHWAY, DUMOSA, VIC 3527 | H109: 32028738 | I109: CTN003 | J109: 22kV AC | K109: Rural Long | L109: - insulators | M109: three phase | N109: Started in or originated from a distribution system | O109: within area delineated on plan LEGL./16-354 | P109: 4.6 | Q109: Moderate | R109: 0.334 | S109: 1.5364 | T109: INC-0019829 | U109: 20230208PWA_03 | V109: Evidence found of pole fire at incident location. Was found by line inspector date of occurrence unknown. Burn marks on crossarm. There was no evidence of ground fire and no flames present. | Y109: - oil-filled circuit recloser (OCR)
A110: 17 | B110: 73 | C110: 2023-02-08 | D110: 21:35 | E110: -36.198933 | F110: 144.630311 | G110: SPIERS ROAD ECHUCA WEST 3564 (Cnr of Echuca-Mitiamo Rd) | H110: 32182963 | I110: ECA012 | J110: 22kV AC | K110: Rural Long | L110: - fuse (EDO fuse) | M110: three phase | N110: Started in or originated from a distribution system | O110: HBRA only | P110: 1 | Q110: Moderate | R110: 0.334 | S110: 0.334 | T110: INC-0019835 | U110: 20230209PWA_01 | V110: EDO fuses operated on Rosedell P1 Switch pole. Dry Grass was ignited at base of pole approx 30x10m burnt There was no injuries. | Y110: - rapid earth fault current limiter (REFCL)
A111: 17 | B111: 74 | C111: 2023-02-09 | D111: 12:45 | E111: -38.033142 | F111: 144.386332 | G111: 86-90 Canterbury Rd West, Lara VIC 3212 | H111: 33044549 | I111: FNS021 | J111: 22kV AC | K111: Rural Short | L111: - dropper / bridge | M111: three phase | N111: Started in or originated from a distribution system | O111: HBRA only | P111: 1 | Q111: Moderate | R111: 0.334 | S111: 0.334 | T111: INC-0019850 | U111: 20230210PWA_02 | V111: Report of ground fire and supply issues at incident location. On arrival crew found a HV dropper lead caught fire dropping molten material to ground starting a small fire. There was no injuries or third party property damage. | Y111: - surge diverter
A112: 17 | B112: 75 | C112: 2023-02-09 | D112: 08:26 | E112: -37.056801 | F112: 143.85382 | G112: 3743 Pyrenees Hwy, Carisbrook VIC 3464 | H112: 30151312 | I112: MRO007 | J112: 22kV AC | K112: Rural Long | L112: - pole (wood) | M112: three phase | N112: Started by lightning striking a distribution system or a part of a distribution system | O112: within area delineated on plan LEGL./16-354 | P112: 4.6 | Q112: Moderate | R112: 0.334 | S112: 1.5364 | T112: INC-0020115 | U112: 20230309PWA_02 | V112: Email from cust: LIS 950776 at entrance to Hanson Quarries struck by lightning, evidence of fire at bottom switch connection, It is believed the pole may have been struck back in december. On arrival crew inspected pole screwdriver slides in about 6inches. Found during outage data review. | Y112: - voltage regulator
A113: 17 | B113: 76 | C113: 2023-02-10 | D113: 01:37 | E113: -38.336399 | F113: 141.51643 | G113: 15 Davies Lane, Portland West | H113: 30353386 | I113: PLD006 | J113: 12.7kV AC (SWER) | K113: Rural Short | L113: - insulators | M113: single wire earth return (SWER) | N113: Started in or originated from a distribution system | O113: HBRA only | P113: 1 | Q113: Moderate | R113: 0.334 | S113: 0.334 | T113: INC-0019862 | U113: 20230213PWA_01 | V113: Crew attended an all supply fail at the above address. they found a pole fire, ground fire and the SWER conductor on the ground. There was no reported injuries. | Y113: Public lighting
A114: 17 | B114: 77 | C114: 2023-02-11 | D114: 15:30 | E114: -36.292376 | F114: 141.871726 | G114: 944 Glenlee Rd, Gerang Gerang VIC 3418 | H114: 32107234 | I114: NHL015 | J114: 22kV AC | K114: Rural Long | L114: - crossarm (wood) | M114: three phase | N114: Started in or originated from a distribution system | O114: HBRA only | P114: 1 | Q114: High | R114: 0.678 | S114: 0.678 | T114: INC-0019864 | U114: 20230213PWA_02 | V114: Report of grass fire at incident location. On arrival crew found HV strain crossarm had broken, one phase conductor fell to ground igniting grass. There were no injuries. | Y114: - brackets (major road)
A115: 17 | B115: 78 | C115: 2023-02-12 | D115: 15:19 | E115: -37.230384 | F115: 141.677487 | G115: 1174 Greens lane, Harrow VIC 3317 | H115: 30552987 | I115: HSM002 | J115: Low voltage AC (<1kV) | K115: Rural Long | L115: - overhead service conductor (residential) | M115: single phase | N115: Started by any person, bird, reptile or other animal coming into contact with a distribution system | O115: HBRA only | P115: 1 | Q115: High | R115: 0.678 | S115: 0.678 | T115: INC-0019868 | U115: 20230213PWA_03 | V115: Birds caused damage to service wire, resultant sparks cause ground fire. There were no injuries | Y115: - brackets (minor road)
A116: 17 | B116: 79 | C116: 2023-02-12 | D116: 04:58 | E116: -37.575584 | F116: 143.827907 | G116: 300 Sutton St, Delacombe VIC 3356 | H116: 30568874 | I116: BATS-BAS2 | J116: 66kV AC | K116: Unknown | L116: - pole (wood) | M116: three phase | N116: Started by any other thing forming part of or coming into contact with a distribution system | O116: LBRA only | P116: 0.2 | Q116: High | R116: 0.678 | S116: 0.1356 | T116: INC-0019870 | U116: 20230213PWA_04 | V116: Car hit pole at intersection of Bell and Sutton st, Delacombe. 66KV line tripped, and caused small fire on pole. There was no ground fire | Y116: - lamps (major road)
A117: 17 | B117: 80 | C117: 2023-02-16 | D117: 17:28 | E117: -37.241578 | F117: 144.43638 | G117: 13 Flynns Ln, Kyneton VIC 3444, Australia | H117: 30382574 | I117: WND014 | J117: Low voltage AC (<1kV) | K117: Rural Short | L117: - overhead conductor (bare; all aluminium conductor) | M117: three phase | N117: Started by any other thing forming part of or coming into contact with a distribution system | O117: within area delineated on plan LEGL./16-354 | P117: 4.6 | Q117: High | R117: 0.678 | S117: 3.1188 | T117: INC-0019934 | U117: 20230217PWA_03 | V117: Fire reported under line. Upon arrival crew discovered a tarp approx. 4x6m had blown into the line causing the LV conductors to clash. Something has fallen to the ground and started a grass fire under the span. The fire was approx. 1/4 acre. Police and fire present No media No injuries or other major damage reported. | Y117: - lamps (minor road)
A118: 17 | B118: 81 | C118: 2023-02-17 | D118: 11:40 | E118: -37.872106 | F118: 144.666763 | G118: 22-46 Golden Square Cres, Hoppers Crossing VIC 3029, Australia | H118: 33071370 | I118: WBE032 | J118: 22kV AC | K118: Urban | L118: - transformer (pole mounted) | M118: three phase | N118: Started by any person, bird, reptile or other animal coming into contact with a distribution system | O118: LBRA only | P118: 0.2 | Q118: Extreme | R118: 2.272 | S118: 0.4544 | T118: INC-0019942 | U118: 20230217PWA_04 | V118: Custome reported transformer has exploded outside their property. All street off supply. Small grass fire at base of pole Crew observed possible bird activity across HV bushings. There were no injuries. | Y118: - luminaires (major road)
A119: 17 | B119: 82 | C119: 2023-02-17 | D119: 16:22 | E119: -37.709979 | F119: 144.303567 | G119: 1407 GLENMORE ROAD,GLENMORE,VIC,3340 | H119: 30108627 | I119: YSWBMH | J119: 66kV AC | K119: Rural Long | L119: - overhead conductor (bare; aluminium core steel reinforced) | M119: three phase | N119: Started by any tree, or part of a tree, falling upon or coming into contact with a distribution system | O119: HBRA only | P119: 1 | Q119: Extreme | R119: 2.272 | S119: 2.272 | T119: INC-0019955 | U119: 20230220PWA_01 | V119: This incident has been re-classified as requested by ESV in its draft Validation Report of Powercor’s 2022-23 Fire Start Report. Powercor notes that this reclassification is made in good faith based on ESV’s communication of its investigation findings, however Powercor has not at this stage received details of ESV’s investigation. | Y119: - luminaires (minor road)
A120: 17 | B120: 83 | C120: 2023-02-18 | D120: 08:35 | E120: -37.709988 | F120: 144.787579 | G120: 37 ADMIRALS CRESCENT,TAYLORS LAKES,VIC,3038 | H120: 34007594 | I120: SA003 | J120: Low voltage AC (<1kV) | K120: Urban | L120: - LV pillar | M120: three phase | N120: Started by any other thing forming part of or coming into contact with a distribution system | O120: LBRA only | P120: 0.2 | Q120: High | R120: 0.678 | S120: 0.1356 | T120: INC-0019956 | U120: 20230220PWA_02 | V120: Customer reported car hit a pilar out the front of this address . Power is now out in the street. wires are exposed. Attending Powercor fault crew advised that an unknown vehicle has made contact with an LV Open-Point Pillar, resulting in a small grass fire | Y120: - poles / columns (major road)
A121: 17 | B121: 84 | C121: 2023-02-18 | D121: 23:39 | E121: -36.042821 | F121: 141.031929 | G121: near cnr of Taylors rd and millers rd telopea downs 3420 | H121: 32121232 | I121: NHL031 | J121: 12.7kV AC (SWER) | K121: Rural Long | L121: - insulators | M121: single wire earth return (SWER) | N121: Started in or originated from a distribution system | O121: HBRA only | P121: 1 | Q121: High | R121: 0.678 | S121: 0.678 | T121: INC-0019962 | U121: 20230220PWA_06 | V121: A pole fire at serviceton nth tee-off pole 151 has caused a ground fire of approx 20 acres. | Y121: - poles / columns (minor road)
A122: 17 | B122: 85 | C122: 2023-02-19 | D122: 15:11 | E122: -37.356124 | F122: 144.528191 | G122: 95 HIGH STREET, WOODEND, VIC, 3442 | H122: 30033334 | I122: WND012 | J122: Low voltage AC (<1kV) | K122: Rural Long | L122: - connection box | M122: three phase | N122: Started in or originated from a distribution system | O122: LBRA only | P122: 0.2 | Q122: Moderate | R122: 0.334 | S122: 0.0668 | T122: INC-0019957 | U122: 20230220PWA_03 | V122: Powercor received a report that CFA onsite, wooden pole exploded and smoking, not currently on fire. Attending crew found LV Junction box caught fire, cause unknown. Debris from fire has dropped on ground and caused a small fire in the mulch below. Fire approx. 0.5m x 1m. Other equipment on pole and pole top was charred. | Y122: Other
A123: 17 | B123: 86 | C123: 2023-02-19 | D123: 19:16 | E123: -36.413992 | F123: 145.394073 | G123: 7958-7960 Kialla Lakes Drive, Kialla 3631 | H123: 30570914 | I123: STN012 | J123: 22kV AC | K123: Urban | L123: - overhead conductor (bare; all aluminium conductor) | M123: three phase | N123: Started by any tree, or part of a tree, falling upon or coming into contact with a distribution system | O123: LBRA only | P123: 0.2 | Q123: Moderate | R123: 0.334 | S123: 0.0668 | T123: INC-0019960 | U123: 20230220PWA_05 | V123: Powercor received a report that a tree top caught on fire due to contact with HV conductor. Fire did not spread further than the tip of the tree. The tree is on the customers property and had grown into line. | Y123: - connection box
A124: 17 | B124: 87 | C124: 2023-02-20 | D124: 09:46 | E124: -37.373214 | F124: 144.01416 | G124: 235 Daylesford-Clunes Rd, Blampied VIC 3364 | H124: 32004519 | I124: BAN009 | J124: Low voltage AC (<1kV) | K124: Rural Long | L124: - switch (disconnector/isolator) | M124: three phase | N124: Started in or originated from a distribution system | O124: within area delineated on plan LEGL./16-354 | P124: 4.6 | Q124: Moderate | R124: 0.334 | S124: 1.5364 | T124: INC-0019963 | U124: 20230220PWA_07 | V124: Fire brigade onsite reported that a fuse on pole has started a small grass fire. Upon arrival crew noted that an FSD, caught fire and started a grass fire. | Y124: - earth / earthing
A125: 17 | B125: 88 | C125: 2023-02-21 | D125: 08:22 | E125: -37.738103 | F125: 144.770554 | G125: 7 Chetwyn Dr, Kings Park VIC 3021 | H125: 30118796 | I125: SSE031 | J125: 22kV AC | K125: Urban | L125: - insulators | M125: three phase | N125: Started in or originated from a distribution system | O125: LBRA only | P125: 0.2 | Q125: High | R125: 0.678 | S125: 0.1356 | T125: INC-0019971 | U125: 20230221PWA_02 | V125: Report of pole fire at incident location. On arrival crew found end burnt off HV crossarm allowing conductor to fall. There was no injuries and no ground fire
A126: 17 | B126: 89 | C126: 2023-02-21 | D126: 12:54 | E126: -37.6315 | F126: 144.481644 | G126: Merrimu Reservoir, Diggers Rest-Coimadai Rd, Coimadai VIC 3340, Australia | H126: 30107567 | I126: MLN022 | J126: 22kV AC | K126: Rural Short | L126: - insulators | M126: three phase | N126: Started in or originated from a distribution system | O126: HBRA only | P126: 1 | Q126: High | R126: 0.678 | S126: 0.678 | T126: INC-0019975 | U126: 20230221PWA_04 | V126: Report of pole fire at incident location. There was no ground fire or reported injuries.
A127: 17 | B127: 90 | C127: 2023-02-21 | D127: 13:33 | E127: -37.711701 | F127: 144.420294 | G127: Rowsley Station Rd, Maddingley VIC 3340 | H127: 32176814 | I127: BMH005 | J127: 22kV AC | K127: Rural Short | L127: - insulators | M127: three phase | N127: Started in or originated from a distribution system | O127: HBRA only | P127: 1 | Q127: High | R127: 0.678 | S127: 0.678 | T127: INC-0020002 | U127: 20230223PWA_02 | V127: Pole cross arm burnt and broken fall to ground. There was no ground fire or reported injuries. | Y127: Extra low voltage AC (<50V)
A128: 17 | B128: 91 | C128: 2023-02-22 | D128: 14:22 | E128: -38.239344 | F128: 143.505992 | G128: 1209 CORANGAMITE LAKE ROAD,ALVIE,VIC,3249 | H128: 32066328 | I128: CLC004 | J128: Low voltage AC (<1kV) | K128: Rural Long | L128: - connection box | M128: single phase | N128: Started in or originated from a distribution system | O128: within area delineated on plan LEGL./16-354 | P128: 4.6 | Q128: Moderate | R128: 0.334 | S128: 1.5364 | T128: INC-0020000 | U128: 20230223PWA_01 | V128: Fire Comms - Grass fire started near a power pole. On arrival crew found that a connection on FOLCB had overheated and allowed fuse base to fall to ground. CFA had extinguished a small grass fire. There were no injuries or third party property damage. | Y128: Low voltage AC (<1kV)
A129: 17 | B129: 92 | C129: 2023-02-23 | D129: 08:10 | E129: -37.764309 | F129: 144.767681 | G129: 11 Wandsworth Ave, Deer Park VIC 3023, Australia | H129: 32169159 | I129: SU021 | J129: 22kV AC | K129: Urban | L129: - insulators | M129: three phase | N129: Started in or originated from a distribution system | O129: LBRA only | P129: 0.2 | Q129: High | R129: 0.678 | S129: 0.1356 | T129: INC-0020007 | U129: 20230224PWA_02 | V129: Report received of conductor low to ground and supply interruption. On arrival crew found a HV term crossarm had burnt and snapped. There was report of a HVI There was no ground fire or reported injuries | Y129: 2.2kV AC
A130: 17 | B130: 93 | C130: 2023-02-23 | D130: 10:41 | E130: -37.793842 | F130: 144.8306 | G130: 29A Hampshire Rd, Sunshine VIC 3020 | H130: 32172926 | I130: SSE034 | J130: 22kV AC | K130: Urban | L130: - insulators | M130: three phase | N130: Started in or originated from a distribution system | O130: LBRA only | P130: 0.2 | Q130: High | R130: 0.678 | S130: 0.1356 | T130: INC-0020120 | U130: 20230310PWA_02 | V130: Report received of pole fire at incident location. On arrival crew found burnt HV crossarm, HV resting near LV No HVI There was no ground fire, no reported injuries or third party property damage Found during outage data review | Y130: 6.6kV AC
A131: 17 | B131: 94 | C131: 2023-02-24 | D131: 12:52 | E131: -37.739553 | F131: 144.802238 | G131: 23 Craigielea Ave, St Albans VIC 3021 | H131: 30104212 | I131: SA005 | J131: 22kV AC | K131: Urban | L131: - insulators | M131: three phase | N131: Started in or originated from a distribution system | O131: LBRA only | P131: 0.2 | Q131: High | R131: 0.678 | S131: 0.1356 | T131: INC-0020018 | U131: 20230227PWA_01 | V131: 22kV cross arm fire due to leakage current. Cross arm broke in two as a result, conductors remained in the air. No ground fire. | Y131: 11kV AC
A132: 17 | B132: 95 | C132: 2023-02-24 | D132: 16:45 | E132: -36.388073 | F132: 145.409437 | G132: 152-164 Swallow St - Shepparton | H132: 30288109 | I132: STN012 | J132: Low voltage AC (<1kV) | K132: Urban | L132: Overhead conductors | M132: three phase | N132: Started by any tree, or part of a tree, falling upon or coming into contact with a distribution system | O132: LBRA only | P132: 0.2 | Q132: High | R132: 0.678 | S132: 0.1356 | T132: INC-0020021 | U132: 20230227PWA_03 | V132: SES advised of tree limb over wires. On arrival crew found a large branch had broken and fallen across LV conductors. There was damage to LV conductors, there was damage to a number of adjacent poles. There were two fires on nature strip from this event approx 70mtrs apart. | Y132: 12.7kV AC (SWER)
A133: 17 | B133: 96 | C133: 2023-02-24 | D133: 18:20 | E133: -37.592081 | F133: 144.503057 | G133: RAVENSWOOD PARK, 246 Antimony Mine Rd, Coimadai VIC 3340, Australia | H133: 32168741 | I133: MLN022 | J133: 22kV AC | K133: Rural Short | L133: - insulators | M133: three phase | N133: Started in or originated from a distribution system | O133: HBRA only | P133: 1 | Q133: High | R133: 0.678 | S133: 0.678 | T133: INC-0020033 | U133: 20230228PWA_01 | V133: Andrew Scott Ph. 0434 316 755 employee , reports broken HV anchor xarm. HV conductor very low. There was no ground fire On arrival crew found the end burnt off a HV strain crossarm and conductor hanging low suspended by HV bridge. | Y133: 22kV AC
A134: 17 | B134: 97 | C134: 2023-02-27 | D134: 07:14 | E134: -37.833725 | F134: 144.868605 | G134: 183 Blackshaws Rd, Newport VIC 3015 | H134: 30112173 | I134: BLT022 | J134: 22kV AC | K134: Urban | L134: - insulators | M134: three phase | N134: Started in or originated from a distribution system | O134: LBRA only | P134: 0.2 | Q134: Moderate | R134: 0.334 | S134: 0.0668 | T134: INC-0020034 | U134: 20230228PWA_02 | V134: Report of pole fire at incident location. Upon arrival, crew confirmed that it was a HV cross arm and pole was smouldering. There was no ground fire or reported injuries. | Y134: 33kV AC
A135: 17 | B135: 98 | C135: 2023-02-28 | D135: 20:44 | E135: -36.66422 | F135: 144.619741 | G135: Muskerry East School Rd, Muskerry VIC 3557, Australia | H135: 32040387 | I135: EHK031 | J135: 12.7kV AC (SWER) | K135: Rural Long | L135: - insulators | M135: single wire earth return (SWER) | N135: Started in or originated from a distribution system | O135: within area delineated on plan LEGL./16-354 | P135: 4.6 | Q135: Moderate | R135: 0.334 | S135: 1.5364 | T135: INC-0020066 | U135: 20230302PWA_01 | V135: Report received of conductor on ground and grass fire in progress. On arrival crew found that a pin type insulator had failed allowing conductor to strike the ground. Grass was subsequently ignited. There was no injuries, there was some damage to fencing. | Y135: 66kV AC
A136: 17 | B136: 99 | C136: 2023-02-28 | D136: 18:10 | E136: -36.650305 | F136: 142.259849 | G136: Henty Highway Dooen | H136: 30078294 | I136: HSM003 | J136: 22kV AC | K136: Rural Long | L136: Overhead conductors | M136: three phase | N136: Started by any person, bird, reptile or other animal coming into contact with a distribution system | O136: HBRA only | P136: 1 | Q136: Moderate | R136: 0.334 | S136: 0.334 | T136: INC-0020067 | U136: 20230302PWA_02 | V136: CFA advised of fire impacted on assets and to check integrity of assets. CFA investigator subsequently identified probable point of origin of fire mid span between poles 94 & 95 Treating as F factor until investigations completed | Y136: 132kV AC
A137: 17 | B137: 100 | C137: 2023-03-02 | D137: 18:31 | E137: -36.635307 | F137: 142.32118 | G137: Tucker Road, Jung (3009 Wimmera Hwy, Jung VIC 3401, Australia) | H137: 33050925 | I137: HSM001 | J137: 22kV AC | K137: Rural Long | L137: - overhead conductor (bare; steel) | M137: three phase | N137: Started by any person, bird, reptile or other animal coming into contact with a distribution system | O137: HBRA only | P137: 1 | Q137: Moderate | R137: 0.334 | S137: 0.334 | T137: INC-0020096 | U137: 20230303PWA_01 | V137: Following an auto reclose of Feeder a grass fire started beneath line. Approx.500sq m burnt. There was no reported injuries or property damage. | Y137: 220kV AC
A138: 17 | B138: 101 | C138: 2023-03-03 | D138: 16:15 | E138: -36.399195 | F138: 145.327348 | G138: 6780 Midland Hwy, Mooroopna VIC 3629 | H138: 30289317 | I138: MNA021 | J138: 22kV AC | K138: Rural Short | L138: - overhead conductor (bare; all aluminium conductor) | M138: three phase | N138: Started by any other thing forming part of or coming into contact with a distribution system | O138: LBRA only | P138: 0.2 | Q138: Moderate | R138: 0.334 | S138: 0.0668 | T138: INC-0020088 | U138: 20230306PWA_01 | V138: Reports from Fire Comms of lines hit by something causing grass fire. Crew found that conductors, above the vicinity of where the grass fire was, were blackened on two phases in particular, with the third having minor burn marks. Crew found remains of burnt insulation sisalation on the ground nearby. There was no reported injuries or third party property damage. | Y138: 330kV AC
A139: 17 | B139: 102 | C139: 2023-03-03 | D139: 15:33 | E139: -36.779569 | F139: 144.269464 | G139: 62 Belle Vue Rd, Golden Square VIC 3555 | H139: 30041987 | I139: BET007 | J139: Low voltage AC (<1kV) | K139: Rural Short | L139: - overhead service conductor (residential) | M139: single phase | N139: Started by any other thing forming part of or coming into contact with a distribution system | O139: LBRA only | P139: 0.2 | Q139: Moderate | R139: 0.334 | S139: =IF(OR(P139="",R139=""),"",IF(AND(O139="within electric line construction area",Q139="No forecast"),1,P139*R139)) -> 0.0668 | T139: INC-0020089 | U139: 20230306PWA_02 | V139: Reports of truck hitting wire On arrival crew found that the service wire between the pole and number 57 was completely missing. Crew were told by neighbour that truck had hit wire and taken wire down with it. Damage to customers installation. Ground fire started near Powercor pole which neighbour extinguished. Approx 1m square. | Y139: 500kV AC
A140: =COUNTA(C140:O140,Q140,T140:V140) -> 17 | B140: 103 | C140: 2023-03-06 | D140: 00:39 | E140: -37.956319 | F140: 144.696611 | G140: 430 Oconnors Road, Werribee South, 3030 | H140: 32170708 | I140: WBE034 | J140: 22kV AC | K140: Rural Short | L140: - insulators | M140: three phase | N140: Started in or originated from a distribution system | O140: LBRA only | P140: =IF(O140="","",IF(O140="LBRA only",0.2,IF(O140="HBRA only",1,IF(O140="within electric line construction area",19.8,IF(O140="within area delineated on plan LEGL./16-354",4.6,""))))) -> 0.2 | Q140: High | R140: 0.678 | S140: 0.1356 | T140: INC-0020093 | U140: 20230306PWA_04 | V140: Report recieved of pole fire at incident location. Pole top glowing red and sparks coming from pole top. On arrival crew found that subsidiary crossarm had burn through on the outer phase. There was no reported HVI, ground fire, third party damage, injury or shocks as a result of this incident. | Y140: Extra low voltage DC (<120V ripple free)
A141: 17 | B141: 104 | C141: 2023-03-09 | D141: 11:45 | E141: -38.268191 | F141: 144.521854 | G141: 107A Presidents Ave, Ocean Grove VIC 3226 | H141: 30267278 | I141: DDL011 | J141: 22kV AC | K141: Rural Short | L141: - dropper / bridge | M141: three phase | N141: Started in or originated from a distribution system | O141: LBRA only | P141: 0.2 | Q141: Moderate | R141: 0.334 | S141: 0.0668 | T141: INC-0020117 | U141: 20230310PWA_01 | V141: Reported pole fire at incident location. On arrival crew found that a HV dropper lead had burnt off at the transformer bushing. bushing cover had melted and lead burnt. There was no ground fire, no reported injuries or third party property damage | Y141: Low voltage DC (<1.5kV)
A142: 17 | B142: 105 | C142: 2023-03-13 | D142: 04:51 | E142: -37.828791 | F142: 144.856636 | G142: 39 Kyle Rd, Altona North VIC 3025 | H142: 30104951 | I142: BLT031 | J142: 22kV AC | K142: Urban | L142: - connector / termination | M142: three phase | N142: Started in or originated from a distribution system | O142: LBRA only | P142: 0.2 | Q142: Moderate | R142: 0.334 | S142: 0.0668 | T142: INC-0020131 | U142: 20230314PWA_01 | V142: Customer reported, what sounded like arc welding for 5 minutes before the power went out. MFB reported pole fire. Upon arrival, the crew found the bridge failed at the CHP, then flashed over and damaged the exit cable and Surge Diverters. HV injection at this site and spot fire at the base of pole. | Y142: 600V DC
A143: 17 | B143: 106 | C143: 2023-03-19 | D143: 07:10 | E143: -37.334334 | F143: 144.766883 | G143: 90 Sheehans Rd, Romsey VIC 3434 | H143: 32048574 | I143: WND012 | J143: 12.7kV AC (SWER) | K143: Rural Long | L143: - insulators | M143: single wire earth return (SWER) | N143: Started in or originated from a distribution system | O143: within area delineated on plan LEGL./16-354 | P143: 4.6 | Q143: Moderate | R143: 0.334 | S143: 1.5364 | T143: INC-0020183 | U143: 20230320PWA_01 | V143: Due to an all supply fail report Kyneton fault crew patrolled Tickawarra SWER system for cause of protection operation. Crew found that SWER strain pole had burnt off at the strain insulator / stay kingbolts, resulting in the conductors either side of pole to fall to ground. No ground fire resultant, SWER ACR operated for the incident. | Y143: 1500V DC
A144: 17 | B144: 107 | C144: 2023-03-20 | D144: 11:22 | E144: -37.682505 | F144: 144.427052 | G144: 32 Powlett St, Maddingley VIC 3340 | H144: 33077059 | I144: BMH005 | J144: 22kV AC | K144: Rural Short | L144: Overhead conductors | M144: three phase | N144: Started by any tree, or part of a tree, falling upon or coming into contact with a distribution system | O144: LBRA only | P144: 0.2 | Q144: High | R144: 0.678 | S144: 0.1356 | T144: INC-0020205 | U144: 20230321PWA_01 | V144: Emergency services reported HV lines down and small grass fire has started. On arrival crew found that a limb had broken off and fallen Bringing down conductors. There was a small ground fire, no injuries or third party property damage. | Y144: Earthing cable
A145: 17 | B145: 108 | C145: 2023-03-20 | D145: 12:16 | E145: -34.35412 | F145: 142.29112 | G145: 159 Swamp Rd, Red Cliffs VIC 3496 | H145: 30099221 | I145: RCT014 | J145: 22kV AC | K145: Rural Short | L145: - fuse (EDO fuse) | M145: three phase | N145: Started in or originated from a distribution system | O145: LBRA only | P145: 0.2 | Q145: Moderate | R145: 0.334 | S145: 0.0668 | T145: INC-0020208 | U145: 20230321PWA_02 | V145: line inspector reported burnt EDO tube at base of substation pole "Hellendoc 4", it appears to have occurred some time in the past. No ground fire evident.
A146: 17 | B146: 109 | C146: 2023-03-21 | D146: 14:31 | E146: -36.352076 | F146: 144.689731 | G146: 70 Diggora Rd, Rochester VIC 3561 | H146: 32181536 | I146: SHP012 | J146: 22kV AC | K146: Rural Long | L146: - fuse (boric acid) | M146: three phase | N146: Started in or originated from a distribution system | O146: HBRA only | P146: 1 | Q146: Moderate | R146: 0.334 | S146: 0.334 | T146: INC-0020222 | U146: 20230322PWA_04 | V146: Customer reported arcing and burning PAL asset at the incident location. Upon arrival Echuca fault crew confirmed that a Boric Acid fuse tube had hung up and burnt thru, failing to clear correctly for a suspected lightning strike to downstream asset. No ground fire associated with the incident.
A147: 17 | B147: 110 | C147: 2023-03-21 | D147: 17:30 | E147: -36.631188 | F147: 144.5423 | G147: 170 ELMORE-BARNADOWN ROAD,GOORNONG,VIC,3557 | H147: 32039729 | I147: EHK031 | J147: 22kV AC | K147: Rural Short | L147: - insulators | M147: three phase | N147: Started in or originated from a distribution system | O147: within area delineated on plan LEGL./16-354 | P147: 4.6 | Q147: Moderate | R147: 0.334 | S147: 1.5364 | T147: INC-0020451 | U147: 20230421PWA_01 | V147: Ross - 0427434743, powerline coming in from Elmore-Barnadown , insulator has pulled out from the end of the wooden cross arm causing wire to come down very low, approx 2 and a half meters from the ground, wire low over customer paddock. No ground fire Found during outage review | Y147: single wire earth return (SWER)
A148: 17 | B148: 111 | C148: 2023-03-23 | D148: 10:01 | E148: -38.340034 | F148: 143.589604 | G148: 50R Murray St, Colac VIC 3250, Australia | H148: 32066978 | I148: CLC002 | J148: 22kV AC | K148: Urban | L148: - insulators | M148: three phase | N148: Started in or originated from a distribution system | O148: LBRA only | P148: 0.2 | Q148: Moderate | R148: 0.334 | S148: 0.0668 | T148: INC-0020241 | U148: 20230323PWA_03 | V148: Customer reports part of transformer has fallen and fell onto the ground and cars,. On arrival crew found that a HV crossarm had burnt through on the end. Debris has fallen on parked cars below There was no ground fire, no reported injuries. | Y148: single phase
A149: 17 | B149: 112 | C149: 2023-03-23 | D149: 14:50 | E149: -37.857271 | F149: 143.156701 | G149: 1395 VITE VITE ROAD VITE VITE VIC 3325 | H149: 30049476 | I149: CDN006 | J149: 12.7kV AC (SWER) | K149: Rural Long | L149: - overhead conductor (bare; steel) | M149: single wire earth return (SWER) | N149: Started by lightning striking a distribution system or a part of a distribution system | O149: within area delineated on plan LEGL./16-354 | P149: 4.6 | Q149: Moderate | R149: 0.334 | S149: 1.5364 | T149: INC-0020276 | U149: 20230324PWA_01 | V149: Crew restoring supply after lightning damage found small grass fire and broken conductor between poles 49 and 50 Vite Vite spur | Y149: two phase
A150: 17 | B150: 113 | C150: 2023-03-23 | D150: 18:16 | E150: -37.512589 | F150: 143.705858 | G150: 5 Madden Rd, Cardigan Village VIC 3352 | H150: 50015901 | I150: BAS011 | J150: 22kV AC | K150: Rural Long | L150: - switch (any other type) | M150: three phase | N150: Started by lightning striking a distribution system or a part of a distribution system | O150: within area delineated on plan LEGL./16-354 | P150: 4.6 | Q150: Moderate | R150: 0.334 | S150: 1.5364 | T150: INC-0020265 | U150: 20230324PWA_03 | V150: Bas011 feeder went to lockout after a patrol the REFCL protection was disabled and the line attempted to be restored, a faulty switch was found at the address location above, a small grass fire was attended by Vic fire. | Y150: three phase
A151: 17 | B151: 114 | C151: 2023-03-24 | D151: 15:50 | E151: -37.697218 | F151: 142.884458 | G151: 1782 GLENELG HIGHWAY,LAKE BOLAC,VIC,3351 (Truck Parking Bay, Lake Bolac VIC 3351, Australia) | H151: 30083205 | I151: ART033 | J151: 22kV AC | K151: Rural Long | L151: - fuse (EDO fuse) | M151: three phase | N151: Started in or originated from a distribution system | O151: within area delineated on plan LEGL./16-354 | P151: 4.6 | Q151: Moderate | R151: 0.334 | S151: 1.5364 | T151: INC-0020281 | U151: 20230327PWA_03 | V151: Vic fire reported a fire at a pole at the above location on arrival the fault crew found two blown HV fuses which appears may have ignited a small grass fire at the base of the pole.
A152: 17 | B152: 115 | C152: 2023-03-25 | D152: 07:28 | E152: -37.333616 | F152: 144.727908 | G152: 3 Ochiltree Ct, Romsey VIC 3434, Australia | H152: 33029436 | I152: WND012 | J152: Low voltage AC (<1kV) | K152: Rural Long | L152: - connection box | M152: single phase | N152: Started in or originated from a distribution system | O152: within area delineated on plan LEGL./16-354 | P152: 4.6 | Q152: Moderate | R152: 0.334 | S152: 1.5364 | T152: INC-0020293 | U152: 20230328PWA_01 | V152: Report received from CFA of pole fire at incident location. Upon arrival crew made area safe and noted that CFA had been onsite to entinguish a melting 100A FOLCB The FOLCB had been dropping molten plastic to ground and did not start any grass fire. There was no reported injuries or third party property damage
A153: 17 | B153: 116 | C153: 2023-03-26 | D153: 11:05 | E153: -38.11892 | F153: 143.18057 | G153: 521 Milangil Estate Road, Kariah | H153: 30049596 | I153: CDN004 | J153: Low voltage AC (<1kV) | K153: Rural Long | L153: - connection box | M153: single phase | N153: Started in or originated from a distribution system | O153: within area delineated on plan LEGL./16-354 | P153: 4.6 | Q153: Moderate | R153: 0.334 | S153: 1.5364 | T153: INC-0020279 | U153: 20230327PWA_02 | V153: Vic Fire reported a pole fire. Crew attended and confirmed a pole box had caught fire. Fire self extinguished | Y153: Negligible: no ground fire
A154: 17 | B154: 117 | C154: 2023-03-29 | D154: 00:37 | E154: -34.633211 | F154: 142.73284 | G154: 76C SALAMAUA ROAD - ROBINVALE 3549 | H154: 33064252 | I154: RVL001 | J154: Low voltage AC (<1kV) | K154: Rural Short | L154: - connection box | M154: single phase | N154: Started in or originated from a distribution system | O154: LBRA only | P154: 0.2 | Q154: Moderate | R154: 0.334 | S154: 0.0668 | T154: INC-0020328 | U154: 20230403PWA_02 | V154: Crew noted fused mains box on pole had melted, crew isolated and replaced. No grassfire just melted box at base of pole in customer's lawn, lots of lush green grass at pole base. 03/04 reviewed images - upgraded to fire | Y154: Localised: less than 10 sq.m
A155: 17 | B155: 118 | C155: 2023-03-30 | D155: 14:01 | E155: -36.150399 | F155: 142.858849 | G155: 75 Camp St, Watchem VIC 3482 | H155: 32017406 | I155: CTN001 | J155: 22kV AC | K155: Rural Long | L155: - insulators | M155: three phase | N155: Started in or originated from a distribution system | O155: within area delineated on plan LEGL./16-354 | P155: 4.6 | Q155: Moderate | R155: 0.334 | S155: 1.5364 | T155: INC-0020316 | U155: 20230331PWA_01 | V155: Powercor received a report of broken crossarm. The attending crew found that a HV crossarm had burnt. | Y155: Small: 10 - 1000 aq.m
A156: 17 | B156: 119 | C156: 2023-03-30 | D156: 06:11 | E156: -36.717603 | F156: 144.250091 | G156: 4-8 Loddon Valley Hwy, Eaglehawk VIC 3556, Australia | H156: 32036447 | I156: BET006 | J156: Low voltage AC (<1kV) | K156: Rural Short | L156: - luminaires (major road) | M156: single phase | N156: Started in or originated from a distribution system | O156: LBRA only | P156: 0.2 | Q156: Moderate | R156: 0.334 | S156: 0.0668 | T156: INC-0020465 | U156: 20230424PWA_03 | V156: Report received of lantern fire no ground fire Found during outage data review | Y156: Medium: 1000 sq.m - 10 ha
A157: 17 | B157: 120 | C157: 2023-03-31 | D157: 07:01 | E157: -37.981434 | F157: 144.573703 | G157: West Tanks Rd, Cocoroc VIC 3030, Australia | H157: 32164952 | I157: WBE023 | J157: 22kV AC | K157: Rural Short | L157: - insulators | M157: three phase | N157: Started in or originated from a distribution system | O157: LBRA only | P157: 0.2 | Q157: Moderate | R157: 0.334 | S157: 0.0668 | T157: INC-0020330 | U157: 20230403PWA_03 | V157: Cross arm burnt off and wire hanging high above the ground. Crew saw no fire on the ground | Y157: Large: more than 10 ha
A158: 17 | B158: 121 | C158: 2023-04-01 | D158: 20:33 | E158: -38.169227 | F158: 144.327872 | G158: Outside 12 Barrabool Rd (corner Mt Pleasant Rd) Highton | H158: 30153529 | I158: WPD033 | J158: Low voltage AC (<1kV) | K158: Urban | L158: - luminaires (major road) | M158: single phase | N158: Started in or originated from a distribution system | O158: LBRA only | P158: 0.2 | Q158: Moderate | R158: 0.334 | S158: 0.0668 | T158: INC-0020332 | U158: 20230403PWA_05 | V158: A pole fire was reported at pole LIS-955297. Upon arrival, crew found that the fire appeared to have started from a 80w MV public light.
A159: 17 | B159: 122 | C159: 2023-04-03 | D159: 01:06 | E159: -38.620969 | F159: 142.995155 | G159: 21 HENNESSY STREET PORT CAMPBELL 3269 | H159: 32058365 | I159: TRG013 | J159: Low voltage AC (<1kV) | K159: Rural Long | L159: - connection box | M159: single phase | N159: Started in or originated from a distribution system | O159: LBRA only | P159: 0.2 | Q159: Moderate | R159: 0.334 | S159: 0.0668 | T159: INC-0020340 | U159: 20230404PWA_01 | V159: Emergency Service reported via a customer that there was a loud bang and sparks coming from pole out the front of 21 Hennessy St. On arrival, the crew confirmed an FOLCB had caught fire and required replacing. The crew made repairs by replacing the FOLCB and associated damaged equipment.
A160: 17 | B160: 123 | C160: 2023-04-05 | D160: 11:01 | E160: -38.023155 | F160: 144.407749 | G160: 5 THE CENTREWAY,LARA,VIC,3212 | H160: A2561042 | I160: FNS013 | J160: Low voltage AC (<1kV) | K160: Rural Short | L160: - fuse (any other type) | M160: single phase | N160: Started in or originated from a distribution system | O160: LBRA only | P160: 0.2 | Q160: Moderate | R160: 0.334 | S160: 0.0668 | T160: INC-0020363 | U160: 20230405PWA_04 | V160: fire comms reported fire at meter box - fire brigade onsite now Crew found fire at meter panel mounted fuse to solicitor's office had ignited | Y160: Started in or originated from a distribution system
A161: 17 | B161: 124 | C161: 2023-04-06 | D161: 14:04 | E161: -37.912947 | F161: 144.292469 | G161: Feathercock Rd, Anakie VIC 3213, Australia | H161: 31011550 | I161: CRO013 | J161: 22kV AC | K161: Rural Long | L161: - overhead conductor (bare; steel) | M161: three phase | N161: Started by any other thing forming part of or coming into contact with a distribution system | O161: within area delineated on plan LEGL./16-354 | P161: 4.6 | Q161: Moderate | R161: 0.334 | S161: 1.5364 | T161: INC-0020377 | U161: 20230411PWA_01 | V161: An excavator belonging to Aerolite Quarries (Manager: Trevor Bartlett 0408 187 814), hit the HV conductors between P3 Featherock (LIS-51403) & P4 Featherock Spur (LIS-51404), causing two of the HV conductors to fall to the ground resulting in a grassfire of approx 50m x 10m = 500m2 in that area. A secondary fault occurred due to the fault current from the first incident, this caused a HV conductor to fall to the ground between P4 Brownes Rd (LIS-51475) & P5 Brownes Rd (LIS-140480), approx. 2.7kms from the initial contact. This resulted in another fire of approx 100m x 10m = 1,000m2 of road reserve. There were no reported injuries. | Y161: Started by any tree, or part of a tree, falling upon or coming into contact with a distribution system
A162: 17 | B162: 125 | C162: 2023-04-06 | D162: 14:04 | E162: -37.915853 | F162: 144.260189 | G162: 35 Brownes Rd, Anakie VIC 3213 | H162: 30063810 | I162: CRO013 | J162: 22kV AC | K162: Rural Long | L162: Overhead conductors | M162: three phase | N162: Started by any other thing forming part of or coming into contact with a distribution system | O162: within area delineated on plan LEGL./16-354 | P162: 4.6 | Q162: Moderate | R162: 0.334 | S162: 1.5364 | T162: INC-0020378 | U162: 20230411PWA_02 | V162: An excavator belonging to Aerolite Quarries (Manager: Trevor Bartlett 0408 187 814), hit the HV conductors between P3 Featherock (LIS-51403) & P4 Featherock Spur (LIS-51404), causing two of the HV conductors to fall to the ground resulting in a grassfire of approx 50m x 10m = 500m2 in that area. A secondary fault occurred due to the fault current from the first incident, this caused a HV conductor to fall to the ground between P4 Brownes Rd (LIS-51475) & P5 Brownes Rd (LIS-140480), approx. 2.7kms from the initial contact. This resulted in another fire of approx 100m x 10m = 1,000m2 of road reserve. There were no reported injuries. | Y162: Started by any person, bird, reptile or other animal coming into contact with a distribution system
A163: 17 | B163: 126 | C163: 2023-04-06 | D163: 16:00 | E163: -38.52747 | F163: 143.137563 | G163: Near the corner of Cooriemungle Rd & Guys Rd, Cooriemungle 3268 | H163: 30047288 | I163: COB011 | J163: 22kV AC | K163: Rural Long | L163: - fuse (boric acid) | M163: three phase | N163: Started in or originated from a distribution system | O163: HBRA only | P163: 1 | Q163: Moderate | R163: 0.334 | S163: 0.334 | T163: INC-0020379 | U163: 20230411PWA_04 | V163: Customers reported a bright light at the incident location, on arrival the crew found that a HV Boric Acid fuse had blown and candled at Switch P34 Cooriemungle LIS-414124, Sw-26429. There was no other reported damage and no ground fire. | Y163: Started by lightning striking a distribution system or a part of a distribution system
A164: 17 | B164: 127 | C164: 2023-04-13 | D164: 06:29 | E164: -37.916286 | F164: 144.750596 | G164: 440 Point Cook Rd, Point Cook VIC 3030 | H164: 30108872 | I164: LV004 | J164: Low voltage AC (<1kV) | K164: Urban | L164: - connection box | M164: three phase | N164: Started in or originated from a distribution system | O164: HBRA only | P164: 1 | Q164: Moderate | R164: 0.334 | S164: 0.334 | T164: INC-0020402 | U164: 20230413PWA_02 | V164: Emergency services advised of pole fire with sparking & arching. Upon arrival the crew found that 3 phase FOLCB was burnt with evidence of small grass fire (appox. 1m2). | Y164: Started by any other thing forming part of or coming into contact with a distribution system
A165: 17 | B165: 128 | C165: 2023-04-15 | D165: 23:59 | E165: -37.661981 | F165: 144.606885 | G165: 21 Croxton Drive, Kurunjang, VIC, 3337 | H165: 31023177 | I165: MLN012 | J165: Low voltage AC (<1kV) | K165: Rural Short | L165: - connection box | M165: three phase | N165: Started in or originated from a distribution system | O165: LBRA only | P165: 0.2 | Q165: Moderate | R165: 0.334 | S165: 0.0668 | T165: INC-0020417 | U165: 20230417PWA_03 | V165: On arrival to site the PCA Faults Crew have advised that the Three-Phase FOLCB mounted on Pole 6 LIS-111161, had burned away and melted. There was no ground fire or reported injuries | Y165: Otherwise started by a distribution system
A166: 17 | B166: 129 | C166: 2023-04-15 | D166: 23:26 | E166: -37.582439 | F166: 143.845833 | G166: 311 Yarrowee Pde, Redan 3350 | H166: 30149222 | I166: BAS032 | J166: Low voltage AC (<1kV) | K166: Rural Short | L166: - overhead conductor (ABC) | M166: three phase | N166: Started by any tree, or part of a tree, falling upon or coming into contact with a distribution system | O166: LBRA only | P166: 0.2 | Q166: Moderate | R166: 0.334 | S166: 0.0668 | T166: INC-0020434 | U166: 20230418PWA_02 | V166: At approx 23:26 hrs a customer reported sparking wires at the above address. A crew was dispatched and found that a council responsibility tree had grown around the LVABC mains cable at the above location and rubbed through the insulations. There was minor burning of the tree branch, but no ground fire.
A167: 17 | B167: 130 | C167: 2023-04-15 | D167: 21:28 | E167: -37.250366 | F167: 144.456652 | G167: 1A Ferguson Street Kyneton 3444 | H167: 33025276 | I167: WND014 | J167: 22kV AC | K167: Rural Short | L167: - overhead conductor (insulated) | M167: three phase | N167: Started in or originated from a distribution system | O167: LBRA only | P167: 0.2 | Q167: Moderate | R167: =IF(Q167="","",IF(C167>=DATE(2022,9,1),IF(Q167="No forecast",0.05,IF(Q167="Moderate",0.334,IF(Q167="High",0.678,IF(Q167="Extreme",2.272,4.754)))),0.05)) -> 0.334 | S167: 0.0668 | T167: INC-0020435 | U167: 20230418PWA_03 | V167: Firecom reported Police on site transformer exploded. Crew found substation Fergusson - High 4, HV leads flashed-over, There was no ground fire
A168: 17 | B168: 131 | C168: 2023-04-15 | D168: 22:54 | E168: -34.254495 | F168: 142.108471 | G168: 3289 Benetook Avenue Mildura 3500 | H168: 32147809 | I168: MDA023 | J168: 22kV AC | K168: Rural Short | L168: - dropper / bridge | M168: three phase | N168: Started in or originated from a distribution system | O168: LBRA only | P168: 0.2 | Q168: Moderate | R168: 0.334 | S168: 0.0668 | T168: INC-0020448 | U168: 20230420PWA_05 | V168: Firecom reported pole fire. Crew found the top of an Lightning arrester was shorting out on the earth screens of this HV dropper on sub pole Benetook 19th P68A, very small flames and no burning to anything else but the two items. There was no ground fire or reported injuries | Y168: 1
A169: 17 | B169: 132 | C169: 2023-04-18 | D169: 15:26 | E169: -36.422003 | F169: 145.647671 | G169: 2380 Midland Highway Cosgrove South 3631 | H169: 30129283 | I169: STN011 | J169: 22kV AC | K169: Rural Long | L169: - crossarm (wood) | M169: three phase | N169: Started in or originated from a distribution system | O169: HBRA only | P169: 1 | Q169: Moderate | R169: 0.334 | S169: 0.334 | T169: INC-0020445 | U169: 20230420PWA_02 | V169: Ausnet customer reported: call dropped out, broken cross arm with wires on the road, Benella-Shepparton Road going 1.5 km east of Bridge Road in Cosgrove South. Crew found a broken cross arm at Midland Highway P166 (LIS 7772) that has been chewed out by termites causing the arm to fail. The broken cross arm has resulted in the conductors failing to the ground and starting 5 small spot fires ranging from 3 meter to 1 meter in size. There was no reported injuries. | Y169: 2
A170: 17 | B170: 133 | C170: 2023-05-01 | D170: 15:34 | E170: -37.909926 | F170: 144.74054 | G170: 5 Ivory Avenue, Point Cook | H170: 30272467 | I170: WBE013 | J170: Low voltage AC (<1kV) | K170: Urban | L170: - underground service cable (residential) | M170: three phase | N170: Started by any person, bird, reptile or other animal coming into contact with a distribution system | O170: LBRA only | P170: 0.2 | Q170: No forecast | R170: 0.05 | S170: 0.01 | T170: INC-0020531 | U170: 20230502PWA_01 | V170: Illegal bypass at number 5 Ivory Ave Point Cook caused fire in service pit between number 3 and number 5. | Y170: 3
A171: 17 | B171: 134 | C171: 2023-05-05 | D171: 21:00 | E171: -37.872284 | F171: 144.665081 | G171: 2 Golden Square Cres, Hoppers Crossing VIC 3029, Australia | H171: 30106845 | I171: WBE032 | J171: 22kV AC | K171: Urban | L171: - connector / termination | M171: three phase | N171: Started in or originated from a distribution system | O171: LBRA only | P171: 0.2 | Q171: No forecast | R171: 0.05 | S171: =IF(OR(P171="",R171=""),"",IF(AND(O171="within electric line construction area",Q171="No forecast"),1,P171*R171)) -> 0.01 | T171: INC-0020574 | U171: 20230508PWA_01 | V171: The crew advised that the HV cable termination overheated | Y171: 4
A172: 17 | B172: 135 | C172: 2023-05-07 | D172: 22:29 | E172: -38.52606 | F172: 143.9839 | G172: Hall Street Cnr Armistead, Lorne | H172: 30318162 | I172: TQY021 | J172: 22kV AC | K172: Rural Short | L172: - dropper / bridge | M172: three phase | N172: Started in or originated from a distribution system | O172: LBRA only | P172: 0.2 | Q172: No forecast | R172: 0.05 | S172: 0.01 | T172: INC-0020593 | U172: 20230510PWA_02 | V172: Burnt Lead on CAP bank | Y172: 5
A173: 17 | B173: 136 | C173: 2023-05-13 | D173: 09:29 | E173: -38.271393 | F173: 144.496734 | G173: 70A Carr St, Barwon Heads | H173: 30071921 | I173: WPD022 | J173: Low voltage AC (<1kV) | K173: Rural Short | L173: - connection box | M173: single phase | N173: Started in or originated from a distribution system | O173: LBRA only | P173: 0.2 | Q173: No forecast | R173: 0.05 | S173: 0.01 | T173: INC-0020633 | U173: 20230515PWA_04 | V173: FOLCB has failed and caught fire. The pole was also left with burn marks. | Y173: 6
A174: 17 | B174: 137 | C174: 2023-05-14 | D174: 19:00 | E174: -38.447415 | F174: 144.118547 | G174: 1000 Great Ocean Rd, Aireys Inlet VIC 3231 | H174: 30061105 | I174: TQY021 | J174: Low voltage AC (<1kV) | K174: Rural Short | L174: - connection box | M174: single phase | N174: Started in or originated from a distribution system | O174: within area delineated on plan LEGL./16-354 | P174: 4.6 | Q174: No forecast | R174: 0.05 | S174: 0.23 | T174: INC-0020631 | U174: 20230515PWA_03 | V174: FOLCB has failed and caught fire. The pole was also left with burn marks No ground fire. | Y174: 7
A175: 17 | B175: 138 | C175: 2023-05-16 | D175: 22:31 | E175: -36.759642 | F175: 144.230348 | G175: 22 Westbury Bvd Maiden Gully 3551 | H175: 41119826 | I175: BET006 | J175: 22kV AC | K175: Rural Short | L175: - transformer (kiosk mounted) | M175: three phase | N175: Started in or originated from a distribution system | O175: LBRA only | P175: 0.2 | Q175: No forecast | R175: 0.05 | S175: 0.01 | T175: INC-0020669 | U175: 20230518PWA_02 | V175: powercor was advised of possible Kiosk substation on fire - emergency services onsite Attending crew found Kiosk substation had been badly damaged by fire. | Y175: 8
A176: 17 | B176: 139 | C176: 2023-05-21 | D176: 14:00 | E176: -38.726672 | F176: 143.252221 | G176: 1800 Great Ocean Road, Yuulong | H176: 30046166 | I176: COB011 | J176: 12.7kV AC (SWER) | K176: Rural Long | L176: - insulators | M176: single wire earth return (SWER) | N176: Started in or originated from a distribution system | O176: HBRA only | P176: 1 | Q176: No forecast | R176: 0.05 | S176: 0.05 | T176: INC-0020682 | U176: 20230522PWA_02 | V176: Pole fire had occurred at Wiridjil-Boulevarde P102 LIS-413868, a SWER type 3 angle with a SWER tee-off. | Y176: 9
A177: 17 | B177: 140 | C177: 2023-05-21 | D177: 06:00 | E177: -38.36339 | F177: 142.459617 | G177: 5 Caramut Rd, Warrnambool | H177: 30134939 | I177: KRT023 | J177: Low voltage AC (<1kV) | K177: Rural Short | L177: - underground service cable (commercial / industrial) | M177: three phase | N177: Started in or originated from a distribution system | O177: LBRA only | P177: 0.2 | Q177: No forecast | R177: 0.05 | S177: 0.01 | T177: INC-0020683 | U177: 20230524PWA_01 | V177: 3 phase LV UG cable had failed at base of pole and burned under cable guard. | Y177: 10
A178: 17 | B178: 141 | C178: 2023-05-22 | D178: 00:53 | E178: -34.615501 | F178: 142.795335 | G178: 31B Crete Rd, Robinvale Irrigation District Section B VIC 3549 | H178: 30318850 | I178: RVL001 | J178: 22kV AC | K178: Rural Short | L178: - dropper / bridge | M178: three phase | N178: Started in or originated from a distribution system | O178: LBRA only | P178: 0.2 | Q178: No forecast | R178: 0.05 | S178: 0.01 | T178: INC-0020685 | U178: 20230522PWA_04 | V178: HV lead from transformer melted and burnt | Y178: =Y177+1 -> 11
A179: 17 | B179: 142 | C179: 2023-06-01 | D179: 22:21 | E179: -37.764071 | F179: 144.840323 | G179: 31 Bunnett St, Sunshine North VIC 3020 | H179: 30308413 | I179: SSE032 | J179: Low voltage AC (<1kV) | K179: Urban | L179: - connector / termination | M179: three phase | N179: Started in or originated from a distribution system | O179: LBRA only | P179: 0.2 | Q179: No forecast | R179: 0.05 | S179: 0.01 | T179: INC-0020785 | U179: 20230605PWA_01 | V179: Pole fire IPC Connector and part of lead | Y179: =Y178+1 -> 12
A180: 17 | B180: 143 | C180: 2023-06-06 | D180: 23:26 | E180: -38.019873 | F180: 144.431835 | G180: 95 Lockyers Rd, Lara VIC 3212 | H180: 33044682 | I180: FNS013 | J180: Low voltage AC (<1kV) | K180: Rural Short | L180: - connection box | M180: single phase | N180: Started in or originated from a distribution system | O180: HBRA only | P180: 1 | Q180: No forecast | R180: 0.05 | S180: 0.05 | T180: INC-0020806 | U180: 20230607PWA_03 | V180: Fused mains box had ignited, small fire at base of pole due to fallen debris | Y180: 13
A181: 17 | B181: 144 | C181: 2023-06-07 | D181: 19:20 | E181: -37.562415 | F181: 142.291133 | G181: Glen Elva, 37 Templetons Rd, Victoria Valley VIC 3294 | H181: 32124733 | I181: HTN032 | J181: 22kV AC | K181: Rural Long | L181: - transformer (pole mounted) | M181: three phase | N181: Started by lightning striking a distribution system or a part of a distribution system | O181: within area delineated on plan LEGL./16-354 | P181: 4.6 | Q181: No forecast | R181: 0.05 | S181: 0.23 | T181: INC-0020815 | U181: 20230608PWA_01 | V181: Customer reported transformer on fire Attending crew found 50KVA transformer had been hit by lightning and split ground fire of approx 4m X 4m extinguished bt CFA Oil spill of similar size | Y181: 14
A182: 17 | B182: 145 | C182: 2023-06-07 | D182: 15:40 | E182: -37.835222 | F182: 144.826019 | G182: 445-469 Grieve Parade, Altona North | H182: 30108694 | I182: ATS-TYA | J182: 66kV AC | K182: Unknown | L182: - communications network assets | M182: single phase | N182: Started by any other thing forming part of or coming into contact with a distribution system | O182: LBRA only | P182: 0.2 | Q182: No forecast | R182: 0.05 | S182: 0.01 | T182: INC-0020862 | U182: 20230613PWA_03 | V182: Powercor was advised of a supervisory cable igniting and falling to ground. It appears to have been contacted by a Linfox tanker and flicked up into 66kV conductors. | Y182: 15
A183: 17 | B183: 146 | C183: 2023-06-09 | D183: 22:34 | E183: -37.42004 | F183: 143.942016 | G183: 349 Sawmill Rd Springmount 3364 | H183: 33000712 | I183: BAN009 | J183: Low voltage AC (<1kV) | K183: Rural Long | L183: - switch (disconnector/isolator) | M183: three phase | N183: Started in or originated from a distribution system | O183: within area delineated on plan LEGL./16-354 | P183: 4.6 | Q183: No forecast | R183: 0.05 | S183: 0.23 | T183: INC-0020876 | U183: 20230614PWA_01 | V183: The CFA reported a pole fire at the above location. A Powercor crew attended and determined that an LV fuse box had caught fire at Roberts Pole 7. There was no ground fire or third party damage. | Y183: 16
A184: 17 | B184: 147 | C184: 2023-06-17 | D184: 13:47 | E184: -36.347206 | F184: 145.24072 | G184: 685 Hooper Road Mooroopna North West 3616 | H184: 30242247 | I184: MNA014 | J184: 22kV AC | K184: Rural Long | L184: - overhead conductor (bare; steel) | M184: three phase | N184: Started by any tree, or part of a tree, falling upon or coming into contact with a distribution system | O184: LBRA only | P184: 0.2 | Q184: No forecast | R184: 0.05 | S184: 0.01 | T184: INC-0020948 | U184: 20230619PWA_01 | V184: Undervoltage detected at above address. On arrival, crew found a tree branch had fallen into a HV conductor bringing HV conductor to ground. Single sectional fuse operated. Crew were on site arranging isolations when branch on wire starting smoking and caught fire. There was an approx 1 sq metre vegetation fire There was no reported of injuries Fire self extinquished. | Y184: 17
A185: 17 | B185: 148 | C185: 2023-06-19 | D185: 09:05 | E185: -37.477864 | F185: 144.653652 | G185: 148 CAMPBELL ROAD, RIDDELLS CREEK,VIC,3431 | H185: 32045443 | I185: GSB012 | J185: Low voltage AC (<1kV) | K185: Rural Short | L185: - connection box | M185: single phase | N185: Started in or originated from a distribution system | O185: within area delineated on plan LEGL./16-354 | P185: 4.6 | Q185: No forecast | R185: 0.05 | S185: 0.23 | T185: INC-0020960 | U185: 20230619PWA_02 | V185: Customer reported pole smoking, cover for fuse has melted and dropped out Crew found FOLCB on pole 13 had burnt There was no ground fire | Y185: 18
A186: 17 | B186: 149 | C186: 2023-06-22 | D186: 09:02 | E186: -35.982324 | F186: 142.917375 | G186: 47 Cumming Ave, Birchip VIC 3483 | H186: 30580615 | I186: CTN001 | J186: Low voltage AC (<1kV) | K186: Rural Long | L186: - overhead conductor (ABC) | M186: three phase | N186: Started in or originated from a distribution system | O186: LBRA only | P186: 0.2 | Q186: No forecast | R186: 0.05 | S186: 0.01 | T186: INC-0021027 | U186: 20230622PWA_04 | V186: Burnt out insulated connection on pole. No ground fire | Y186: 19
A187: 17 | B187: 150 | C187: 2023-06-22 | D187: 06:49 | E187: -38.161798 | F187: 144.318392 | G187: 75 Reigate Rd, Highton VIC 3216 | H187: 30544526 | I187: WPD033 | J187: Low voltage AC (<1kV) | K187: Urban | L187: - connection box | M187: single phase | N187: Started in or originated from a distribution system | O187: LBRA only | P187: 0.2 | Q187: No forecast | R187: 0.05 | S187: 0.01 | T187: INC-0021028 | U187: 20230622PWA_05 | V187: Pole mounted FOLCB has caught fire. No ground fire. | Y187: 20
A188: 17 | B188: 151 | C188: 2023-06-26 | D188: 09:48 | E188: -37.398226 | F188: 144.590496 | G188: 4 Anzac Rd, Mount Macedon VIC 3441 (734 Mount Macedon Rd, Mount Macedon VIC 3441, Australia) | H188: 30032395 | I188: GSB014 | J188: 12.7kV AC (SWER) | K188: Rural Short | L188: - overhead conductor (bare; all aluminium conductor) | M188: single wire earth return (SWER) | N188: Started by any tree, or part of a tree, falling upon or coming into contact with a distribution system | O188: within area delineated on plan LEGL./16-354 | P188: 4.6 | Q188: No forecast | R188: 0.05 | S188: 0.23 | T188: INC-0021075 | U188: 20230626PWA_03 | V188: Customer reported Tree fallen on powerlines and brought them down on the ground. Popping noise heard then fire sparked but has since gone out. SES has been called to attend. Crew found dead branch had blown onto SWER line and burnt through conductor causing it to contact Aerial earth below Very small fire on branch where it contacted line
A189: 17 | B189: 152 | C189: 2023-06-10 | D189: 07:38:00 | E189: -36.372391 | F189: 145.344242 | G189: 30 CRAIGMUIR DRIVE,MOOROOPNA,VIC,3629 | H189: 60187668 | I189: MNA034 | J189: Low voltage AC (<1kV) | K189: Rural Long | L189: - fuse (any other type) | M189: single phase | N189: Started in or originated from a distribution system | O189: LBRA only | P189: 0.2 | Q189: No forecast | R189: 0.05 | S189: 0.01 | T189: INC-0021395 | U189: 20230720PWA_01 | V189: Meter burnt due to red phase fuse wedge catching fire Found during Outage data review, no photos supplied
A190: 17 | B190: 153 | C190: 2023-06-12 | D190: 18:35:00 | E190: -38.424973 | F190: 144.171411 | G190: 65 SEVENTH AVENUE,ANGLESEA,VIC | H190: 33041659 | I190: TQY021 | J190: Low voltage AC (<1kV) | K190: Rural Short | L190: - connector / termination | M190: three phase | N190: Started in or originated from a distribution system | O190: LBRA only | P190: 0.2 | Q190: No forecast | R190: 0.05 | S190: 0.01 | T190: INC-0021398 | U190: 20230720PWA_02 | V190: Pole sparked and a small fire started on the ground, has gone out now. Pole still intermittently sparking, supply ok On arrival crew found an overheated connection to an isolator. Found during Outage data review Small ground spot fire
A191: 0 | B191: 154 | S191: =IF(OR(P191="",R191=""),"",IF(AND(O191="within electric line construction area",Q191="No forecast"),1,P191*R191)) -> 
A192: 0 | B192: 155
A193: 0 | B193: 156
A194: 0 | B194: 157
A195: 0 | B195: 158
A196: 0 | B196: 159
A197: 0 | B197: 160
A198: =COUNTA(C198:O198,Q198,T198:V198) -> 0 | B198: 161
A199: =COUNTA(C199:O199,Q199,T199:V199) -> 0 | B199: 162
A200: 0 | B200: 163
A201: 0 | B201: 164
A202: 0 | B202: 165
A203: 0 | B203: 166
A204: 0 | B204: 167 | P204: =IF(O204="","",IF(O204="LBRA only",0.2,IF(O204="HBRA only",1,IF(O204="within electric line construction area",19.8,IF(O204="within area delineated on plan LEGL./16-354",4.6,""))))) -> 
A205: 0 | B205: 168
A206: 0 | B206: 169
A207: 0 | B207: 170
A208: =COUNTA(C208:O208,Q208,T208:V208) -> 0 | B208: 171
A209: =COUNTA(C209:O209,Q209,T209:V209) -> 0 | B209: 172
A210: 0 | B210: 173
... 27 more rows

Sheet 3. Systems and Audit
B1: =IF(Cover!D27="","[DNSP Name]", Cover!D27) -> Powercor
B2: F-factor data reporting
B3: =IF(Cover!D33="","[Year]",Cover!D33) -> 2022/23
B6: Instructions:
B8: =IF(Cover!D27="","[DNSP Name] must provide:", CONCATENATE(Cover!D27," must provide:")) -> Powercor must provide:
B10: Table 4 - Information or reporting systems
B11: (1) Name of any IT system used to collect fire start data or fault event data - i.e. SCADA system, or fault reporting system
B12: (2) Whether the fire recording or fault recording process has been audited or complies with a relevant Australian or industry standard - Yes or No
B13: (3) List any relevant Australian or industry standards that the fire recording or fault recording process complies with
B14: (4) Whether the data entered into or removed from the IT system has been audited - Yes or No
B17: Table 4: Information or reporting systems
B19: Information or reporting systems | C19: Name | D19: System Audited | E19: Relevant Standards
B20: System 1 | C20: Network Incidents Database | D20: Yes | E20: None applicable
B21: System 2 | C21: Outage Management System (OMS) | D21: Yes | E21: None applicable
B22: System 3 | C22: Smallworld GIS (Graphical Information System) | D22: Yes | E22: None applicable
B23: System 4
B24: System 5
B25: System 6
B26: System 7
B27: System 8
B29: The SGSPAA Internal Audit function undertakes a programme of work in accordance with the SGSPAA Group Internal Audit Plan. This internal audit activity covers elements of the systems and process used for capturing, recording and maintaining fire start data.
